{"text_format":"1","workbook":"xlsx","n_sheets":5,"sheets":["Settings","機器類","Base","01F","02F"],"not_rendered":{"charts":0,"images":10,"macros":1,"external_links":1,"defined_names":75,"comments":0,"pivot_tables":0},"unopened":[],"bounds":{"document_bytes":16777216,"sheet_cells":100000,"rows_first":2000,"rows_last":500,"rows_between":2000,"halvings":0,"cell_chars":16384,"cell_head_chars":4096},"cells_cut":0,"cells_raw":0,"read":"whole","date_system":"1900"}

{"sheet":"Settings","index":0,"n_rows":149,"n_cols":7,"rows_kept":149,"cut":false,"hidden":false,"merged":[[149,1,149,6],[140,1,140,2],[146,1,146,6],[130,1,130,2],[103,1,103,2],[98,1,98,2],[111,1,111,2],[115,1,115,2],[119,1,119,2],[123,1,123,2]]}
[]
[null,"レイヤー"]
[null,"ID","名称"]
[null,"Map","レイアウトのみ"]
[null,"Extension","内線番号"]
[null,"Section1","1課"]
[null,"Section2","2課"]
[null,"Device","機器"]
[null,"Etc","その他"]
[]
[]
[]
[]
[]
[null,"アイコン"]
[null,"ID","名称","記号","罫線で囲む","常に表示","SVG"]
[null,"note","メモ","書",0,0,"<circle cx=\"8\" cy=\"8\" r=\"3\" fill=\"#9a0079\" />"]
[null,"phone","電話","電",0,1,"<rect x=\"1.5\" y=\"3\" width=\"14.5\" height=\"12.5\" rx=\"1\" ry=\"1\" fill=\"#000000\" />\n<rect x=\"9\" y=\"4\" width=\"6\" height=\"2\" fill=\"#ffffff\" stroke=\"#000000\" stroke-width=\"0.25\" />\n<rect x=\"3\" y=\"1.5\" width=\"5\" height=\"12\"rx=\"1\" ry=\"1\" fill=\"#000000\" stroke=\"#ffffff\" stroke-width=\"0.75\" />\n<rect x=\"9\" y=\"7\" width=\"2\" height=\"2\" rx=\"0.5\" ry=\"0.5\" fill=\"#ffffff\" stroke=\"#000000\" stroke-width=\"0.25\" />\n<rect x=\"11\" y=\"7\" width=\"2\" height=\"2\" rx=\"0.5\" ry=\"0.5\" fill=\"#ffffff\" stroke=\"#000000\" stroke-width=\"0.25\" />\n<rect x=\"13\" y=\"7\" width=\"2\" height=\"2\" rx=\"0.5\" ry=\"0.5\" fill=\"#ffffff\" stroke=\"#000000\" stroke-width=\"0.25\" />\n<rect x=\"9\" y=\"9\" width=\"2\" height=\"2\" rx=\"0.5\" ry=\"0.5\" fill=\"#ffffff\" stroke=\"#000000\" stroke-width=\"0.25\" />\n<rect x=\"11\" y=\"9\" width=\"2\" height=\"2\" rx=\"0.5\" ry=\"0.5\" fill=\"#ffffff\" stroke=\"#000000\" stroke-width=\"0.25\" />\n<rect x=\"13\" y=\"9\" width=\"2\" height=\"2\" rx=\"0.5\" ry=\"0.5\" fill=\"#ffffff\" stroke=\"#000000\" stroke-width=\"0.25\" />\n<rect x=\"9\" y=\"11\" width=\"2\" height=\"2\" rx=\"0.5\" ry=\"0.5\" fill=\"#ffffff\" stroke=\"#000000\" stroke-width=\"0.25\" />\n<rect x=\"11\" y=\"11\" width=\"2\" height=\"2\" rx=\"0.5\" ry=\"0.5\" fill=\"#ffffff\" stroke=\"#000000\" stroke-width=\"0.25\" />\n<rect x=\"13\" y=\"11\" width=\"2\" height=\"2\" rx=\"0.5\" ry=\"0.5\" fill=\"#ffffff\" stroke=\"#000000\" stroke-width=\"0.25\" />"]
[null,"printer","プリンタ","プ",0,1,"<rect x=\"1.5\" y=\"4.5\" width=\"14.5\" height=\"11.5\" rx=\"1\" ry=\"1\" fill=\"#ffffff\" stroke=\"#000000\" stroke-width=\"1\" />\n<line x1=\"2\" y1=\"10.5\" x2=\"16\" y2=\"10.5\" stroke=\"#000000\" stroke-width=\"0.5\" />\n<rect x=\"4.5\" y=\"14\" width=\"9\" height=\"2\" fill=\"none\" stroke=\"#000000\" stroke-width=\"0.5\" />\n<circle cx=\"12\" cy=\"12\" r=\"0.5\" stroke=\"#000000\" stroke-width=\"0.5\" />\n<circle cx=\"14\" cy=\"12\" r=\"0.5\" stroke=\"#000000\" stroke-width=\"0.5\" />\n<path d=\"m 12.5,0.5 h -8.5 v 8 h 9.5 v -6 l -2,-2 v 2 h 2\"  fill=\"#ffffff\" stroke=\"#000000\" stroke-width=\"0.5\" />\n<line x1=\"6\" y1=\"2.5\" x2=\"10.5\" y2=\"2.5\" stroke=\"#000000\" stroke-width=\"0.5\" />\n<line x1=\"6\" y1=\"4.5\" x2=\"11\" y2=\"4.5\" stroke=\"#000000\" stroke-width=\"0.5\" />\n<line x1=\"6\" y1=\"6.5\" x2=\"11\" y2=\"6.5\" stroke=\"#000000\" stroke-width=\"0.5\" />"]
[null,"copy","コピー機","コ",0,1,"<rect x=\"1\" y=\"13.5\" width=\"15\" height=\"2\" fill=\"#ffffff\" stroke=\"#000000\" stroke-width=\"0.25\" />\n<rect x=\"7\" y=\"13.5\" width=\"3\" height=\"1\" fill=\"#000000\" stroke=\"none\" />\n<rect x=\"14.5\" y=\"14.5\" width=\"1\" height=\"1\" fill=\"#000000\" stroke=\"none\" />\n<rect x=\"1\" y=\"11.5\" width=\"15\" height=\"2\" fill=\"#ffffff\" stroke=\"#000000\" stroke-width=\"0.25\" />\n<rect x=\"7\" y=\"11.5\" width=\"3\" height=\"1\" fill=\"#000000\" stroke=\"none\" />\n<rect x=\"14.5\" y=\"12.5\" width=\"1\" height=\"1\" fill=\"#000000\" stroke=\"none\" />\n<rect x=\"1\" y=\"9.5\" width=\"15\" height=\"2\" fill=\"#ffffff\" stroke=\"#000000\" stroke-width=\"0.25\" />\n<rect x=\"7\" y=\"9.5\" width=\"3\" height=\"1\" fill=\"#000000\" stroke=\"none\" />\n<rect x=\"14.5\" y=\"10.5\" width=\"1\" height=\"1\" fill=\"#000000\" stroke=\"none\" />\n<rect x=\"3\" y=\"15.5\" width=\"1.5\" height=\"1\" fill=\"#000000\" stroke=\"none\" />\n<rect x=\"12.5\" y=\"15.5\" width=\"1.5\" height=\"1\" fill=\"#000000\" stroke=\"none\" />\n<rect x=\"1\" y=\"5.5\" width=\"15\" height=\"4\" fill=\"#ffffff\" stroke=\"#000000\" stroke-width=\"0.25\" />\n<rect x=\"4\" y=\"4.5\" width=\"9\" height=\"4.5\" rx~\"0.5\" ry=\"0.5\" fill=\"#000000\" stroke=\"none\" />\n<rect x=\"5\" y=\"6.5\" width=\"3.5\" height=\"2\" fill=\"#ffffff\" stroke=\"none\" />\n<rect x=\"9.5\" y=\"6.5\" width=\"1\" height=\"0.5\" fill=\"#ffffff\" stroke=\"none\" />\n<rect x=\"9.5\" y=\"7.5\" width=\"1\" height=\"0.5\" fill=\"#ffffff\" stroke=\"none\" />\n<rect x=\"11.5\" y=\"7.5\" width=\"1\" height=\"1\" fill=\"#ffffff\" stroke=\"none\" />\n<path d=\"m 5,3.5 -0.3,-1 6.2,-2 c 0,0 -0.4,1 -0.7,1 z\" fill=\"#ffffff\" stroke=\"#000000\" stroke-width=\"0.25\" />\n<path d=\"m 1,5.5 v -3 h 4 l 1,2 H 16 v 1 H 1\" fill=\"#ffffff\" stroke=\"#000000\" stroke-width=\"0.25\" />"]
[null,"laptop","ノートＰＣ","ノ",0,1,"<rect x=\"2.5\" y=\"10\" width=\"12\" height=\"1\" fill=\"#ffffff\" stroke=\"none\" />\n<rect x=\"2.5\" y=\"10\" width=\"1\" height=\"1\" fill=\"#000000\" stroke=\"none\" />\n<rect x=\"4.5\" y=\"10\" width=\"8\" height=\"1\" fill=\"#000000\" stroke=\"none\" />\n<rect x=\"13.5\" y=\"10\" width=\"1\" height=\"1\" fill=\"#000000\" stroke=\"none\" />\n<rect x=\"2\" y=\"1.5\" width=\"13\" height=\"8.5\" rx=\"0.5\" ry=\"0.5\" fill=\"#000000\" stroke=\"none\" />\n<rect x=\"3\" y=\"3\" width=\"11\" height=\"6.5\" fill=\"#ffffff\" stroke=\"none\" />\n<path d=\"M 2.5,10.5 1,15.5 h 15 l -1.5,-5 z\" fill=\"#000000\" stroke=\"#000000\" stroke-width=\"0.5\" stroke-linecap=\"round\" stroke-linejoin=\"round\" />\n<rect x=\"3\" y=\"11.5\" width=\"1\" height=\"1\" fill=\"#ffffff\" stroke=\"#000000\" stroke-width=\"0.25\" />\n<rect x=\"4\" y=\"11.5\" width=\"1\" height=\"1\" fill=\"#ffffff\" stroke=\"#000000\" stroke-width=\"0.25\" />\n<rect x=\"5\" y=\"11.5\" width=\"1\" height=\"1\" fill=\"#ffffff\" stroke=\"#000000\" stroke-width=\"0.25\" />\n<rect x=\"6\" y=\"11.5\" width=\"1\" height=\"1\" fill=\"#ffffff\" stroke=\"#000000\" stroke-width=\"0.25\" />\n<rect x=\"7\" y=\"11.5\" width=\"1\" height=\"1\" fill=\"#ffffff\" stroke=\"#000000\" stroke-width=\"0.25\" />\n<rect x=\"8\" y=\"11.5\" width=\"1\" height=\"1\" fill=\"#ffffff\" stroke=\"#000000\" stroke-width=\"0.25\" />\n<rect x=\"9\" y=\"11.5\" width=\"1\" height=\"1\" fill=\"#ffffff\" stroke=\"#000000\" stroke-width=\"0.25\" />\n<rect x=\"10\" y=\"11.5\" width=\"1\" height=\"1\" fill=\"#ffffff\" stroke=\"#000000\" stroke-width=\"0.25\" />\n<rect x=\"11\" y=\"11.5\" width=\"1\" height=\"1\" fill=\"#ffffff\" stroke=\"#000000\" stroke-width=\"0.25\" />\n<rect x=\"12\" y=\"11.5\" width=\"1\" height=\"1\" fill=\"#ffffff\" stroke=\"#000000\" stroke-width=\"0.25\" />\n<rect x=\"13\" y=\"11.5\" width=\"1\" height=\"1\" fill=\"#ffffff\" stroke=\"#000000\" stroke-width=\"0.25\" />\n<rect x=\"2.5\" y=\"12.5\" width=\"1\" height=\"1\" fill=\"#ffffff\" stroke=\"#000000\" stroke-width=\"0.25\" />\n<rect x=\"3.5\" y=\"12.5\" width=\"1\" height=\"1\" fill=\"#ffffff\" stroke=\"#000000\" stroke-width=\"0.25\" />\n<rect x=\"4.5\" y=\"12.5\" width=\"1\" height=\"1\" fill=\"#ffffff\" stroke=\"#000000\" stroke-width=\"0.25\" />\n<rect x=\"5.5\" y=\"12.5\" width=\"1\" height=\"1\" fill=\"#ffffff\" stroke=\"#000000\" stroke-width=\"0.25\" />\n<rect x=\"6.5\" y=\"12.5\" width=\"1\" height=\"1\" fill=\"#ffffff\" stroke=\"#000000\" stroke-width=\"0.25\" />\n<rect x=\"7.5\" y=\"12.5\" width=\"1\" height=\"1\" fill=\"#ffffff\" stroke=\"#000000\" stroke-width=\"0.25\" />\n<rect x=\"8.5\" y=\"12.5\" width=\"1\" height=\"1\" fill=\"#ffffff\" stroke=\"#000000\" stroke-width=\"0.25\" />\n<rect x=\"9.5\" y=\"12.5\" width=\"1\" height=\"1\" fill=\"#ffffff\" stroke=\"#000000\" stroke-width=\"0.25\" />\n<rect x=\"10.5\" y=\"12.5\" width=\"1\" height=\"1\" fill=\"#ffffff\" stroke=\"#000000\" stroke-width=\"0.25\" />\n<rect x=\"11.5\" y=\"12.5\" width=\"1\" height=\"1\" fill=\"#ffffff\" stroke=\"#000000\" stroke-width=\"0.25\" />\n<rect x=\"12.5\" y=\"12.5\" width=\"1\" height=\"1\" fill=\"#ffffff\" stroke=\"#000000\" stroke-width=\"0.25\" />\n<rect x=\"13.5\" y=\"12.5\" width=\"1\" height=\"1\" fill=\"#ffffff\" stroke=\"#000000\" stroke-width=\"0.25\" />\n<path d=\"m 7.2,15 h 3 l -0.2,-1 h -2.6\" fill=\"#ffffff\" stroke=\"none\" />"]
[null,"desktop","デスクトップＰＣ","デ",0,1,"<path d=\"m 5.5,9.5 v 1 h -2 l -1,1 h 8 l -1,-1 h -2 v -1 h -2\" fill=\"#ffffff\" stroke=\"#000000\" stroke-width=\"0.25\" />\n<rect x=\"1\" y=\"2\" width=\"11\" height=\"7.5\" rx=\"0.5\" ry=\"0.5\" fill=\"#ffffff\" stroke=\"#000000\" stroke-width=\"0.25\" />\n<rect x=\"2\" y=\"3\" width=\"9\" height=\"5.5\" fill=\"#000000\" stroke=\"none\" />\n<path d=\"m 2,12.5 -1,3 h 11 l -1,-3 h -9\" fill=\"#ffffff\" stroke=\"#000000\" stroke-width=\"0.25\" />\n<rect x=\"2.5\" y=\"13\" width=\"1\" height=\"1\" fill=\"#000000\" stroke=\"#ffffff\" stroke-width=\"0.25\" />\n<rect x=\"3.5\" y=\"13\" width=\"1\" height=\"1\" fill=\"#000000\" stroke=\"#ffffff\" stroke-width=\"0.25\" />\n<rect x=\"4.5\" y=\"13\" width=\"1\" height=\"1\" fill=\"#000000\" stroke=\"#ffffff\" stroke-width=\"0.25\" />\n<rect x=\"5.5\" y=\"13\" width=\"1\" height=\"1\" fill=\"#000000\" stroke=\"#ffffff\" stroke-width=\"0.25\" />\n<rect x=\"6.5\" y=\"13\" width=\"1\" height=\"1\" fill=\"#000000\" stroke=\"#ffffff\" stroke-width=\"0.25\" />\n<rect x=\"7.5\" y=\"13\" width=\"1\" height=\"1\" fill=\"#000000\" stroke=\"#ffffff\" stroke-width=\"0.25\" />\n<rect x=\"8.5\" y=\"13\" width=\"1\" height=\"1\" fill=\"#000000\" stroke=\"#ffffff\" stroke-width=\"0.25\" />\n<rect x=\"9.5\" y=\"13\" width=\"1\" height=\"1\" fill=\"#000000\" stroke=\"#ffffff\" stroke-width=\"0.25\" />\n<rect x=\"2\" y=\"14\" width=\"1\" height=\"1\" fill=\"#000000\" stroke=\"#ffffff\" stroke-width=\"0.25\" />\n<rect x=\"3\" y=\"14\" width=\"1\" height=\"1\" fill=\"#000000\" stroke=\"#ffffff\" stroke-width=\"0.25\" />\n<rect x=\"4\" y=\"14\" width=\"1\" height=\"1\" fill=\"#000000\" stroke=\"#ffffff\" stroke-width=\"0.25\" />\n<rect x=\"5\" y=\"14\" width=\"1\" height=\"1\" fill=\"#000000\" stroke=\"#ffffff\" stroke-width=\"0.25\" />\n<rect x=\"6\" y=\"14\" width=\"1\" height=\"1\" fill=\"#000000\" stroke=\"#ffffff\" stroke-width=\"0.25\" />\n<rect x=\"7\" y=\"14\" width=\"1\" height=\"1\" fill=\"#000000\" stroke=\"#ffffff\" stroke-width=\"0.25\" />\n<rect x=\"8\" y=\"14\" width=\"1\" height=\"1\" fill=\"#000000\" stroke=\"#ffffff\" stroke-width=\"0.25\" />\n<rect x=\"9\" y=\"14\" width=\"1\" height=\"1\" fill=\"#000000\" stroke=\"#ffffff\" stroke-width=\"0.25\" />\n<rect x=\"10\" y=\"14\" width=\"1\" height=\"1\" fill=\"#000000\" stroke=\"#ffffff\" stroke-width=\"0.25\" />\n<rect x=\"13\" y=\"2\" width=\"3\" height=\"8.5\" fill=\"#ffffff\" stroke=\"#000000\" stroke-width=\"0.25\" />\n<line x1=\"13\" y1=\"3\" x2=\"16\" y2=\"3\" stroke=\"#000000\" stroke-width=\"0.25\" />\n<line x1=\"13\" y1=\"4\" x2=\"16\" y2=\"4\" stroke=\"#000000\" stroke-width=\"0.25\" />\n<line x1=\"13\" y1=\"9\" x2=\"16\" y2=\"9\" stroke=\"#000000\" stroke-width=\"0.25\" />\n<circle cx=\"14.5\" cy=\"6\" r=\"0.5\" fill=\"#000000\" stroke=\"none\" />\n<ellipse cx=\"14\" cy=\"13.5\" rx=\"1.5\" ry=\"2\" fill=\"#ffffff\" stroke=\"#000000\" stroke-width=\"0.25\" />\n<line x1=\"14\" y1=\"11.5\" x2=\"14\" y2=\"13\" stroke=\"#000000\" stroke-width=\"0.25\" />\n<line x1=\"12.5\" y1=\"13\" x2=\"15.5\" y2=\"13\" stroke=\"#000000\" stroke-width=\"0.25\" />"]
[null,"chair","座椅子","座",1,1,"<rect x=\"3\" y=\"0.5\" width=\"11\" height=\"9\" rx=\"1.5\" ry=\"1.5\" fill=\"#ffffff\" stroke=\"#000000\" stroke-width=\"1\" />\n<path d=\"m 3,8 -1,2 h 13 l -1,-2 z\" fill=\"#ffffff\" stroke=\"#000000\" stroke-width=\"1\" />\n<rect x=\"2\" y=\"10\" width=\"13\" height=\"2\" fill=\"#ffffff\" stroke=\"#000000\" stroke-width=\"1\" />\n<rect x=\"2\" y=\"14\" width=\"13\" height=\"3\" fill=\"#d0d0d0\" stroke=\"none\" />\n<rect x=\"2\" y=\"12\" width=\"2\" height=\"5\" fill=\"#ffffff\" stroke=\"#000000\" stroke-width=\"1\" />\n<rect x=\"13\" y=\"12\" width=\"2\" height=\"5\" fill=\"#ffffff\" stroke=\"#000000\" stroke-width=\"1\" />"]
[null,"trash","ゴミ箱","箱",1,1,"<path d=\"m 2.5,4 2,10 c 2,1 4,2 8,0 l 2,-10 z\" fill=\"#ffffff\" stroke=\"#000000\" stroke-width=\"1\" />\n<ellipse cx=\"8.5\" cy=\"3.5\" rx=\"6\" ry=\"1.5\" fill=\"#000000\" stroke=\"#000000\" stroke-width=\"1\" />"]
[null,"shredder","シュレッダー","断",1,1,"<path d=\"m 1.5,9.5 1,6.5 h 12 l 1,-6.5 z\" fill=\"#b0b0b0\" stroke=\"#000000\" stroke-width=\"1\" />\n<rect x=\"4.5\" y=\"9.5\" width=\"2\" height=\"5\" fill=\"#b0b0b0\" stroke=\"#000000\" stroke-width=\"0.5\" />\n<rect x=\"6.5\" y=\"9.5\" width=\"2\" height=\"3\" fill=\"#b0b0b0\" stroke=\"#000000\" stroke-width=\"0.5\" />\n<rect x=\"8.5\" y=\"9.5\" width=\"2\" height=\"4.5\" fill=\"#b0b0b0\" stroke=\"#000000\" stroke-width=\"0.5\" />\n<rect x=\"10.5\" y=\"9.5\" width=\"2\" height=\"5.5\" fill=\"#b0b0b0\" stroke=\"#000000\" stroke-width=\"0.5\" />\n<path d=\"m 2.5,5.5 -1,3 h 14 l -1,-3 z\" fill=\"#000000\" stroke=\"#000000\" stroke-width=\"1\" />\n<path d=\"m 12.5,1.5 h -8.5 v 6 h 9.5 v -4 l -2,-2 v 2 h 2\"  fill=\"#ffffff\" stroke=\"#000000\" stroke-width=\"0.5\" />\n<line x1=\"6\" y1=\"3.5\" x2=\"10.5\" y2=\"3.5\" stroke=\"#000000\" stroke-width=\"0.5\" />\n<line x1=\"6\" y1=\"5.5\" x2=\"11.5\" y2=\"5.5\" stroke=\"#000000\" stroke-width=\"0.5\" />\n<circle cx=\"14\" cy=\"8\" r=\"1\" fill=\"#ffffff\" stroke=\"none\" />"]
[]
[]
[]
[]
[]
[]
[]
[]
[]
[]
[]
[]
[]
[]
[]
[]
[]
[]
[]
[]
[]
[]
[]
[]
[]
[]
[]
[]
[]
[]
[]
[]
[]
[]
[]
[]
[]
[]
[]
[]
[]
[]
[]
[]
[]
[]
[]
[]
[]
[]
[null,"吹き出しの向き"]
[null,"値"]
[]
[null,"↖"]
[null,"↗"]
[null,"↙"]
[null,"↘"]
[]
[]
[]
[null,"図形"]
[null,"値"]
[]
[null,"直線"]
[null,"矢印"]
[null,"四角形（塗）"]
[null,"四角形"]
[null,"ワープ"]
[]
[]
[]
[null,"座標/色など"]
[null,"適用箇所","値"]
[null,"全体"]
[null,"左右の空白のピクセル数",150,"(0-999)"]
[null,"上の空白のピクセル数\n",60,"(0-999)"]
[null,"フロアタイトルの色","#000000"]
[null,"フロアタイトルの文字サイズ",18,"(1-99)"]
[null,"セル"]
[null,"セルの幅",17,"(1-99)"]
[null,"セルの高さ",17,"(1-99)"]
[null,"横のセル数",35,"(1-130)"]
[null,"縦のセル数",30,"(1-130)"]
[null,"塗りつぶしの不透明度",0.625,"(0.0-1.0)"]
[null,"罫線の色","#404040"]
[null,"罫線の太さ",1,"(0-9。0のときはガイド無し)"]
[null,"吹き出し"]
[null,"吹き出しの文字色","#9a0079"]
[null,"吹き出しの文字サイズ",10,"(1-99)"]
[null,"吹き出しの斜め線の長さ",17,"(0-99)"]
[null,"下塗り"]
[null,"下塗りの色","#ffffff"]
[null,"下塗りの補助目盛線の色","#f0f0f0"]
[null,"下塗りの主目盛線の色","#e0e0e0"]
[null,"ガイド"]
[null,"ガイドの背景色","#774411"]
[null,"ガイドの文字色","#e6d780"]
[null,"ガイドの文字サイズ",12,"(1-99)"]
[null,"レイヤー選択"]
[null,"レイヤー選択の背景色","#438bbd"]
[null,"レイヤー選択の文字色","#c1fcff"]
[null,"選択中レイヤーの背景色","#e9696a"]
[null,"選択中レイヤーの文字色","#ffe9a7"]
[null,"レイヤー選択の枠線の色","#044379"]
[null,"レイヤー選択の文字サイズ",12,"(1-99)"]
[null,"フロア選択"]
[null,"フロア選択の幅",180,"(1-999)"]
[null,"フロア選択の背景色","#cfffff"]
[null,"フロア選択の文字色","#004d8c"]
[null,"無効なフロア選択の背景色","#9bbfbf"]
[null,"無効なフロア選択の文字色","#002a4d"]
[null,"選択中フロアの背景色","#ff8389"]
[null,"選択中フロアの文字色","#fffddb"]
[null,"フロア選択の文字サイズ",12,"(1-99)"]
[null,"フロア選択１ページの階数",20,"(1-99)"]
[null,"参照"]
[null,"リンクの色","blue"]
[]
[]
[]
[null,"スタイルシートへの追加分"]
[null,"span.reference-title{\n    color: black;\n    font-size: 12pt;\n    font-weight: bold;\n}\n\ntable.reference{\n    background-color: white;\n    border: 1px solid #002a4d;\n    border-collapse: collapse;\n    width: 100%;\n}\n\ntable.reference tr th{\n    background-color: #438bbd;\n    border: 1px solid #002a4d;\n    color: #ffe9a7;\n    font-size: 9pt;\n    font-weight: bold;\n    text-align: center;\n    vertical-align: middle;\n}\n\ntable.reference tr td{\n    background-color: white;\n    border: 1px solid #002a4d;\n    color: black;\n    font-size: 9pt;\n}"]
[]
[null,"SVG定義への追加分"]

{"sheet":"機器類","index":1,"n_rows":38,"n_cols":7,"rows_kept":38,"cut":false,"hidden":false,"merged":[[2,1,2,3]]}
[]
[null,"HTML"]
[null,"<span class=\"reference-title\"><<1>></span>\n<table class=\"reference\">\n<tr>\n<th>型番</th>\n<td colspan=\"3\"><<2>></td>\n</tr>\n<tr>\n<th>IPアドレス</th>\n<td><<3>></td>\n<th>管理人</th>\n<td><<4>></td>\n</tr>\n<tr>\n<th colspan=\"4\">備考</th>\n</tr>\n<tr>\n<td colspan=\"4\"><<5>></td>\n</tr>\n</table>"]
[]
[null,"ID","表示","型番","IPアドレス","管理人","備考"]
[null,"会社PC1",{"$f":"LIST_START","v":"会社PC1"},"－","192.168.0.11","鈴木","－"]
[null,"会社PC2",{"$f":"B7","v":"会社PC2"},"－","192.168.0.12","鈴木","－"]
[null,"会社PC3",{"$f":"B8","v":"会社PC3"},"－","192.168.0.13","鈴木","－"]
[null,"会社PC4","会社PC4","－","192.168.0.14","鈴木","－"]
[null,"会社PC5","会社PC5","－","192.168.0.15","鈴木","－"]
[null,"会社PC6","会社PC6","－","192.168.0.16","鈴木","－"]
[null,"会社PC7","会社PC7","－","192.168.0.17","鈴木","－"]
[null,"会社PC8","会社PC8","－","192.168.0.18","鈴木","－"]
[null,"会社PC9","会社PC9","－","192.168.0.19","鈴木","－"]
[null,"会社PC10","会社PC10","－","192.168.0.20","鈴木","－"]
[null,"会社PC11","会社PC11","－","192.168.0.21","鈴木","－"]
[null,"会社PC12","会社PC12","－","192.168.0.22","鈴木","－"]
[null,"会社PC13","会社PC13","－","192.168.0.23","鈴木","－"]
[null,"会社PC14","会社PC14","－","192.168.0.24","鈴木","－"]
[null,"会社PC15","会社PC15","－","192.168.0.25","鈴木","－"]
[null,"インクジェットプリンタ1","インクジェットプリンタ","－","－","佐藤","<a>会社PC12</a>の共有プリンタ"]
[null,"レーザープリンタ1","レーザープリンタ","－","192.168.0.101","佐藤","－"]
[null,"複合機1","複合機","－","192.168.0.102","佐藤","FAX"]
[null,"会社PC21","会社PC21","－","192.168.100.21","田中","－"]
[null,"会社PC22","会社PC22","－","192.168.100.22","田中","－"]
[null,"会社PC23","会社PC23","－","192.168.100.23","田中","－"]
[null,"会社PC24","会社PC24","－","192.168.100.24","田中","－"]
[null,"会社PC25","会社PC25","－","192.168.100.25","田中","－"]
[null,"会社PC26","会社PC26","－","192.168.100.26","田中","－"]
[null,"会社PC27","会社PC27","－","192.168.100.27","田中","－"]
[null,"会社PC28","会社PC28","－","192.168.100.28","田中","－"]
[null,"会社PC29","会社PC29","－","192.168.100.29","田中","－"]
[null,"会社PC30","会社PC30","－","192.168.100.30","田中","－"]
[null,"会社PC31","会社PC31","－","192.168.100.31","田中","－"]
[null,"会社PC32","会社PC32","－","192.168.100.32","田中","－"]
[null,"会社PC33","会社PC33","－","192.168.100.33","田中","－"]
[null,"会社PC34","会社PC34","－","192.168.100.34","田中","－"]
[null,"複合機2","複合機","－","192.168.0.111","佐藤","コピー可能（A4・A3）"]

{"sheet":"Base","index":2,"n_rows":120,"n_cols":51,"rows_kept":120,"cut":false,"hidden":false,"merged":[[29,2,33,2],[4,2,8,2],[9,2,13,2],[14,2,18,2],[19,2,23,2],[24,2,28,2],[2,3,2,27],[2,28,2,37],[3,33,3,37],[0,30,1,33],[3,3,3,7],[3,8,3,12],[3,13,3,17],[3,18,3,22],[3,23,3,27],[3,28,3,32]]}
[null,null,null,null,null,null,null,null,null,null,null,null,null,null,null,null,null,null,null,null,null,null,null,null,null,null,null,null,null,null,"パレット"]
[null,null,null,null,null,null,null,null,null,null,null,null,null,null,null,null,null,null,null,null,null,null,null,null,null,null,null,null,null,null,null,null,null,null,null,null,null,null,null,null,null,null,null,null,null,"[A-1](a-1)"]
["ツールバー",null,null,"タイトル",null,null,null,null,null,null,null,null,null,null,null,null,null,null,null,null,null,null,null,null,null,null,null,null,{"$f":"TITLE","v":"タイトル"},null,null,null,null,null,null,null,null,null,null,"アイコン",null,null,null,null,null,"図形"]
[null,null,null,1,null,null,null,null,2,null,null,null,null,3,null,null,null,null,4,null,null,null,null,5,null,null,null,null,6,null,null,null,null,7,null,null,null,null,null,"座標","アイコン","レイヤー","吹き出しの向き","テキスト",null,"座標","図形","レイヤー","色","X","Y"]
[null,null,"A",null,null,null,null,null,null,null,null,null,null,null,null,null,null,null,null,null,null,null,null,null,null,null,null,null,null,null,null,null,null,null,null,null,null,null,null,null,""]
[null,null,null,null,null,null,null,null,null,null,null,null,null,null,null,null,null,null,null,null,null,null,null,null,null,null,null,null,null,null,null,null,null,null,null,null,null,null,null,null,""]
[null,null,null,null,null,null,null,null,null,null,null,null,null,null,null,null,null,null,null,null,null,null,null,null,null,null,null,null,null,null,null,null,null,null,null,null,null,null,null,null,""]
[null,null,null,null,null,null,null,null,null,null,null,null,null,null,null,null,null,null,null,null,null,null,null,null,null,null,null,null,null,null,null,null,null,null,null,null,null,null,null,null,""]
[null,null,null,null,null,null,null,null,null,null,null,null,null,null,null,null,null,null,null,null,null,null,null,null,null,null,null,null,null,null,null,null,null,null,null,null,null,null,null,null,""]
[null,null,"B",null,null,null,null,null,null,null,null,null,null,null,null,null,null,null,null,null,null,null,null,null,null,null,null,null,null,null,null,null,null,null,null,null,null,null,null,null,""]
[null,null,null,null,null,null,null,null,null,null,null,null,null,null,null,null,null,null,null,null,null,null,null,null,null,null,null,null,null,null,null,null,null,null,null,null,null,null,null,null,""]
[null,null,null,null,null,null,null,null,null,null,null,null,null,null,null,null,null,null,null,null,null,null,null,null,null,null,null,null,null,null,null,null,null,null,null,null,null,null,null,null,""]
[null,null,null,null,null,null,null,null,null,null,null,null,null,null,null,null,null,null,null,null,null,null,null,null,null,null,null,null,null,null,null,null,null,null,null,null,null,null,null,null,""]
[null,null,null,null,null,null,null,null,null,null,null,null,null,null,null,null,null,null,null,null,null,null,null,null,null,null,null,null,null,null,null,null,null,null,null,null,null,null,null,null,""]
[null,null,"C",null,null,null,null,null,null,null,null,null,null,null,null,null,null,null,null,null,null,null,null,null,null,null,null,null,null,null,null,null,null,null,null,null,null,null,null,null,""]
[null,null,null,null,null,null,null,null,null,null,null,null,null,null,null,null,null,null,null,null,null,null,null,null,null,null,null,null,null,null,null,null,null,null,null,null,null,null,null,null,""]
[null,null,null,null,null,null,null,null,null,null,null,null,null,null,null,null,null,null,null,null,null,null,null,null,null,null,null,null,null,null,null,null,null,null,null,null,null,null,null,null,""]
[null,null,null,null,null,null,null,null,null,null,null,null,null,null,null,null,null,null,null,null,null,null,null,null,null,null,null,null,null,null,null,null,null,null,null,null,null,null,null,null,""]
[null,null,null,null,null,null,null,null,null,null,null,null,null,null,null,null,null,null,null,null,null,null,null,null,null,null,null,null,null,null,null,null,null,null,null,null,null,null,null,null,""]
[null,null,"D",null,null,null,null,null,null,null,null,null,null,null,null,null,null,null,null,null,null,null,null,null,null,null,null,null,null,null,null,null,null,null,null,null,null,null,null,null,""]
[null,null,null,null,null,null,null,null,null,null,null,null,null,null,null,null,null,null,null,null,null,null,null,null,null,null,null,null,null,null,null,null,null,null,null,null,null,null,null,null,""]
[null,null,null,null,null,null,null,null,null,null,null,null,null,null,null,null,null,null,null,null,null,null,null,null,null,null,null,null,null,null,null,null,null,null,null,null,null,null,null,null,""]
[null,null,null,null,null,null,null,null,null,null,null,null,null,null,null,null,null,null,null,null,null,null,null,null,null,null,null,null,null,null,null,null,null,null,null,null,null,null,null,null,""]
[null,null,null,null,null,null,null,null,null,null,null,null,null,null,null,null,null,null,null,null,null,null,null,null,null,null,null,null,null,null,null,null,null,null,null,null,null,null,null,null,""]
[null,null,"E",null,null,null,null,null,null,null,null,null,null,null,null,null,null,null,null,null,null,null,null,null,null,null,null,null,null,null,null,null,null,null,null,null,null,null,null,null,""]
[null,null,null,null,null,null,null,null,null,null,null,null,null,null,null,null,null,null,null,null,null,null,null,null,null,null,null,null,null,null,null,null,null,null,null,null,null,null,null,null,""]
[null,null,null,null,null,null,null,null,null,null,null,null,null,null,null,null,null,null,null,null,null,null,null,null,null,null,null,null,null,null,null,null,null,null,null,null,null,null,null,null,""]
[null,null,null,null,null,null,null,null,null,null,null,null,null,null,null,null,null,null,null,null,null,null,null,null,null,null,null,null,null,null,null,null,null,null,null,null,null,null,null,null,""]
[null,null,null,null,null,null,null,null,null,null,null,null,null,null,null,null,null,null,null,null,null,null,null,null,null,null,null,null,null,null,null,null,null,null,null,null,null,null,null,null,""]
[null,null,"F",null,null,null,null,null,null,null,null,null,null,null,null,null,null,null,null,null,null,null,null,null,null,null,null,null,null,null,null,null,null,null,null,null,null,null,null,null,""]
[null,null,null,null,null,null,null,null,null,null,null,null,null,null,null,null,null,null,null,null,null,null,null,null,null,null,null,null,null,null,null,null,null,null,null,null,null,null,null,null,""]
[null,null,null,null,null,null,null,null,null,null,null,null,null,null,null,null,null,null,null,null,null,null,null,null,null,null,null,null,null,null,null,null,null,null,null,null,null,null,null,null,""]
[null,null,null,null,null,null,null,null,null,null,null,null,null,null,null,null,null,null,null,null,null,null,null,null,null,null,null,null,null,null,null,null,null,null,null,null,null,null,null,null,""]
[null,null,null,null,null,null,null,null,null,null,null,null,null,null,null,null,null,null,null,null,null,null,null,null,null,null,null,null,null,null,null,null,null,null,null,null,null,null,null,null,""]
[null,null,null,null,null,null,null,null,null,null,null,null,null,null,null,null,null,null,null,null,null,null,null,null,null,null,null,null,null,null,null,null,null,null,null,null,null,null,null,null,""]
[null,null,null,null,null,null,null,null,null,null,null,null,null,null,null,null,null,null,null,null,null,null,null,null,null,null,null,null,null,null,null,null,null,null,null,null,null,null,null,null,""]
[null,null,null,null,null,null,null,null,null,null,null,null,null,null,null,null,null,null,null,null,null,null,null,null,null,null,null,null,null,null,null,null,null,null,null,null,null,null,null,null,""]
[null,null,null,null,null,null,null,null,null,null,null,null,null,null,null,null,null,null,null,null,null,null,null,null,null,null,null,null,null,null,null,null,null,null,null,null,null,null,null,null,""]
[null,null,null,null,null,null,null,null,null,null,null,null,null,null,null,null,null,null,null,null,null,null,null,null,null,null,null,null,null,null,null,null,null,null,null,null,null,null,null,null,""]
[null,null,null,null,null,null,null,null,null,null,null,null,null,null,null,null,null,null,null,null,null,null,null,null,null,null,null,null,null,null,null,null,null,null,null,null,null,null,null,null,""]
[null,null,null,null,null,null,null,null,null,null,null,null,null,null,null,null,null,null,null,null,null,null,null,null,null,null,null,null,null,null,null,null,null,null,null,null,null,null,null,null,""]
[null,null,null,null,null,null,null,null,null,null,null,null,null,null,null,null,null,null,null,null,null,null,null,null,null,null,null,null,null,null,null,null,null,null,null,null,null,null,null,null,""]
[null,null,null,null,null,null,null,null,null,null,null,null,null,null,null,null,null,null,null,null,null,null,null,null,null,null,null,null,null,null,null,null,null,null,null,null,null,null,null,null,""]
[null,null,null,null,null,null,null,null,null,null,null,null,null,null,null,null,null,null,null,null,null,null,null,null,null,null,null,null,null,null,null,null,null,null,null,null,null,null,null,null,""]
[null,null,null,null,null,null,null,null,null,null,null,null,null,null,null,null,null,null,null,null,null,null,null,null,null,null,null,null,null,null,null,null,null,null,null,null,null,null,null,null,""]
[null,null,null,null,null,null,null,null,null,null,null,null,null,null,null,null,null,null,null,null,null,null,null,null,null,null,null,null,null,null,null,null,null,null,null,null,null,null,null,null,""]
[null,null,null,null,null,null,null,null,null,null,null,null,null,null,null,null,null,null,null,null,null,null,null,null,null,null,null,null,null,null,null,null,null,null,null,null,null,null,null,null,""]
[null,null,null,null,null,null,null,null,null,null,null,null,null,null,null,null,null,null,null,null,null,null,null,null,null,null,null,null,null,null,null,null,null,null,null,null,null,null,null,null,""]
[null,null,null,null,null,null,null,null,null,null,null,null,null,null,null,null,null,null,null,null,null,null,null,null,null,null,null,null,null,null,null,null,null,null,null,null,null,null,null,null,""]
[null,null,null,null,null,null,null,null,null,null,null,null,null,null,null,null,null,null,null,null,null,null,null,null,null,null,null,null,null,null,null,null,null,null,null,null,null,null,null,null,""]
[null,null,null,null,null,null,null,null,null,null,null,null,null,null,null,null,null,null,null,null,null,null,null,null,null,null,null,null,null,null,null,null,null,null,null,null,null,null,null,null,""]
[null,null,null,null,null,null,null,null,null,null,null,null,null,null,null,null,null,null,null,null,null,null,null,null,null,null,null,null,null,null,null,null,null,null,null,null,null,null,null,null,""]
[null,null,null,null,null,null,null,null,null,null,null,null,null,null,null,null,null,null,null,null,null,null,null,null,null,null,null,null,null,null,null,null,null,null,null,null,null,null,null,null,""]
[null,null,null,null,null,null,null,null,null,null,null,null,null,null,null,null,null,null,null,null,null,null,null,null,null,null,null,null,null,null,null,null,null,null,null,null,null,null,null,null,""]
[null,null,null,null,null,null,null,null,null,null,null,null,null,null,null,null,null,null,null,null,null,null,null,null,null,null,null,null,null,null,null,null,null,null,null,null,null,null,null,null,""]
[null,null,null,null,null,null,null,null,null,null,null,null,null,null,null,null,null,null,null,null,null,null,null,null,null,null,null,null,null,null,null,null,null,null,null,null,null,null,null,null,""]
[null,null,null,null,null,null,null,null,null,null,null,null,null,null,null,null,null,null,null,null,null,null,null,null,null,null,null,null,null,null,null,null,null,null,null,null,null,null,null,null,""]
[null,null,null,null,null,null,null,null,null,null,null,null,null,null,null,null,null,null,null,null,null,null,null,null,null,null,null,null,null,null,null,null,null,null,null,null,null,null,null,null,""]
[null,null,null,null,null,null,null,null,null,null,null,null,null,null,null,null,null,null,null,null,null,null,null,null,null,null,null,null,null,null,null,null,null,null,null,null,null,null,null,null,""]
[null,null,null,null,null,null,null,null,null,null,null,null,null,null,null,null,null,null,null,null,null,null,null,null,null,null,null,null,null,null,null,null,null,null,null,null,null,null,null,null,""]
[null,null,null,null,null,null,null,null,null,null,null,null,null,null,null,null,null,null,null,null,null,null,null,null,null,null,null,null,null,null,null,null,null,null,null,null,null,null,null,null,""]
[null,null,null,null,null,null,null,null,null,null,null,null,null,null,null,null,null,null,null,null,null,null,null,null,null,null,null,null,null,null,null,null,null,null,null,null,null,null,null,null,""]
[null,null,null,null,null,null,null,null,null,null,null,null,null,null,null,null,null,null,null,null,null,null,null,null,null,null,null,null,null,null,null,null,null,null,null,null,null,null,null,null,""]
[null,null,null,null,null,null,null,null,null,null,null,null,null,null,null,null,null,null,null,null,null,null,null,null,null,null,null,null,null,null,null,null,null,null,null,null,null,null,null,null,""]
[null,null,null,null,null,null,null,null,null,null,null,null,null,null,null,null,null,null,null,null,null,null,null,null,null,null,null,null,null,null,null,null,null,null,null,null,null,null,null,null,""]
[null,null,null,null,null,null,null,null,null,null,null,null,null,null,null,null,null,null,null,null,null,null,null,null,null,null,null,null,null,null,null,null,null,null,null,null,null,null,null,null,""]
[null,null,null,null,null,null,null,null,null,null,null,null,null,null,null,null,null,null,null,null,null,null,null,null,null,null,null,null,null,null,null,null,null,null,null,null,null,null,null,null,""]
[null,null,null,null,null,null,null,null,null,null,null,null,null,null,null,null,null,null,null,null,null,null,null,null,null,null,null,null,null,null,null,null,null,null,null,null,null,null,null,null,""]
[null,null,null,null,null,null,null,null,null,null,null,null,null,null,null,null,null,null,null,null,null,null,null,null,null,null,null,null,null,null,null,null,null,null,null,null,null,null,null,null,""]
[null,null,null,null,null,null,null,null,null,null,null,null,null,null,null,null,null,null,null,null,null,null,null,null,null,null,null,null,null,null,null,null,null,null,null,null,null,null,null,null,""]
[null,null,null,null,null,null,null,null,null,null,null,null,null,null,null,null,null,null,null,null,null,null,null,null,null,null,null,null,null,null,null,null,null,null,null,null,null,null,null,null,""]
[null,null,null,null,null,null,null,null,null,null,null,null,null,null,null,null,null,null,null,null,null,null,null,null,null,null,null,null,null,null,null,null,null,null,null,null,null,null,null,null,""]
[null,null,null,null,null,null,null,null,null,null,null,null,null,null,null,null,null,null,null,null,null,null,null,null,null,null,null,null,null,null,null,null,null,null,null,null,null,null,null,null,""]
[null,null,null,null,null,null,null,null,null,null,null,null,null,null,null,null,null,null,null,null,null,null,null,null,null,null,null,null,null,null,null,null,null,null,null,null,null,null,null,null,""]
[null,null,null,null,null,null,null,null,null,null,null,null,null,null,null,null,null,null,null,null,null,null,null,null,null,null,null,null,null,null,null,null,null,null,null,null,null,null,null,null,""]
[null,null,null,null,null,null,null,null,null,null,null,null,null,null,null,null,null,null,null,null,null,null,null,null,null,null,null,null,null,null,null,null,null,null,null,null,null,null,null,null,""]
[null,null,null,null,null,null,null,null,null,null,null,null,null,null,null,null,null,null,null,null,null,null,null,null,null,null,null,null,null,null,null,null,null,null,null,null,null,null,null,null,""]
[null,null,null,null,null,null,null,null,null,null,null,null,null,null,null,null,null,null,null,null,null,null,null,null,null,null,null,null,null,null,null,null,null,null,null,null,null,null,null,null,""]
[null,null,null,null,null,null,null,null,null,null,null,null,null,null,null,null,null,null,null,null,null,null,null,null,null,null,null,null,null,null,null,null,null,null,null,null,null,null,null,null,""]
[null,null,null,null,null,null,null,null,null,null,null,null,null,null,null,null,null,null,null,null,null,null,null,null,null,null,null,null,null,null,null,null,null,null,null,null,null,null,null,null,""]
[null,null,null,null,null,null,null,null,null,null,null,null,null,null,null,null,null,null,null,null,null,null,null,null,null,null,null,null,null,null,null,null,null,null,null,null,null,null,null,null,""]
[null,null,null,null,null,null,null,null,null,null,null,null,null,null,null,null,null,null,null,null,null,null,null,null,null,null,null,null,null,null,null,null,null,null,null,null,null,null,null,null,""]
[null,null,null,null,null,null,null,null,null,null,null,null,null,null,null,null,null,null,null,null,null,null,null,null,null,null,null,null,null,null,null,null,null,null,null,null,null,null,null,null,""]
[null,null,null,null,null,null,null,null,null,null,null,null,null,null,null,null,null,null,null,null,null,null,null,null,null,null,null,null,null,null,null,null,null,null,null,null,null,null,null,null,""]
[null,null,null,null,null,null,null,null,null,null,null,null,null,null,null,null,null,null,null,null,null,null,null,null,null,null,null,null,null,null,null,null,null,null,null,null,null,null,null,null,""]
[null,null,null,null,null,null,null,null,null,null,null,null,null,null,null,null,null,null,null,null,null,null,null,null,null,null,null,null,null,null,null,null,null,null,null,null,null,null,null,null,""]
[null,null,null,null,null,null,null,null,null,null,null,null,null,null,null,null,null,null,null,null,null,null,null,null,null,null,null,null,null,null,null,null,null,null,null,null,null,null,null,null,""]
[null,null,null,null,null,null,null,null,null,null,null,null,null,null,null,null,null,null,null,null,null,null,null,null,null,null,null,null,null,null,null,null,null,null,null,null,null,null,null,null,""]
[null,null,null,null,null,null,null,null,null,null,null,null,null,null,null,null,null,null,null,null,null,null,null,null,null,null,null,null,null,null,null,null,null,null,null,null,null,null,null,null,""]
[null,null,null,null,null,null,null,null,null,null,null,null,null,null,null,null,null,null,null,null,null,null,null,null,null,null,null,null,null,null,null,null,null,null,null,null,null,null,null,null,""]
[null,null,null,null,null,null,null,null,null,null,null,null,null,null,null,null,null,null,null,null,null,null,null,null,null,null,null,null,null,null,null,null,null,null,null,null,null,null,null,null,""]
[null,null,null,null,null,null,null,null,null,null,null,null,null,null,null,null,null,null,null,null,null,null,null,null,null,null,null,null,null,null,null,null,null,null,null,null,null,null,null,null,""]
[null,null,null,null,null,null,null,null,null,null,null,null,null,null,null,null,null,null,null,null,null,null,null,null,null,null,null,null,null,null,null,null,null,null,null,null,null,null,null,null,""]
[null,null,null,null,null,null,null,null,null,null,null,null,null,null,null,null,null,null,null,null,null,null,null,null,null,null,null,null,null,null,null,null,null,null,null,null,null,null,null,null,""]
[null,null,null,null,null,null,null,null,null,null,null,null,null,null,null,null,null,null,null,null,null,null,null,null,null,null,null,null,null,null,null,null,null,null,null,null,null,null,null,null,""]
[null,null,null,null,null,null,null,null,null,null,null,null,null,null,null,null,null,null,null,null,null,null,null,null,null,null,null,null,null,null,null,null,null,null,null,null,null,null,null,null,""]
[null,null,null,null,null,null,null,null,null,null,null,null,null,null,null,null,null,null,null,null,null,null,null,null,null,null,null,null,null,null,null,null,null,null,null,null,null,null,null,null,""]
[null,null,null,null,null,null,null,null,null,null,null,null,null,null,null,null,null,null,null,null,null,null,null,null,null,null,null,null,null,null,null,null,null,null,null,null,null,null,null,null,""]
[null,null,null,null,null,null,null,null,null,null,null,null,null,null,null,null,null,null,null,null,null,null,null,null,null,null,null,null,null,null,null,null,null,null,null,null,null,null,null,null,""]
[null,null,null,null,null,null,null,null,null,null,null,null,null,null,null,null,null,null,null,null,null,null,null,null,null,null,null,null,null,null,null,null,null,null,null,null,null,null,null,null,""]
[null,null,null,null,null,null,null,null,null,null,null,null,null,null,null,null,null,null,null,null,null,null,null,null,null,null,null,null,null,null,null,null,null,null,null,null,null,null,null,null,""]
[null,null,null,null,null,null,null,null,null,null,null,null,null,null,null,null,null,null,null,null,null,null,null,null,null,null,null,null,null,null,null,null,null,null,null,null,null,null,null,null,""]
[null,null,null,null,null,null,null,null,null,null,null,null,null,null,null,null,null,null,null,null,null,null,null,null,null,null,null,null,null,null,null,null,null,null,null,null,null,null,null,null,""]
[null,null,null,null,null,null,null,null,null,null,null,null,null,null,null,null,null,null,null,null,null,null,null,null,null,null,null,null,null,null,null,null,null,null,null,null,null,null,null,null,""]
[null,null,null,null,null,null,null,null,null,null,null,null,null,null,null,null,null,null,null,null,null,null,null,null,null,null,null,null,null,null,null,null,null,null,null,null,null,null,null,null,""]
[null,null,null,null,null,null,null,null,null,null,null,null,null,null,null,null,null,null,null,null,null,null,null,null,null,null,null,null,null,null,null,null,null,null,null,null,null,null,null,null,""]
[null,null,null,null,null,null,null,null,null,null,null,null,null,null,null,null,null,null,null,null,null,null,null,null,null,null,null,null,null,null,null,null,null,null,null,null,null,null,null,null,""]
[null,null,null,null,null,null,null,null,null,null,null,null,null,null,null,null,null,null,null,null,null,null,null,null,null,null,null,null,null,null,null,null,null,null,null,null,null,null,null,null,""]
[null,null,null,null,null,null,null,null,null,null,null,null,null,null,null,null,null,null,null,null,null,null,null,null,null,null,null,null,null,null,null,null,null,null,null,null,null,null,null,null,""]
[null,null,null,null,null,null,null,null,null,null,null,null,null,null,null,null,null,null,null,null,null,null,null,null,null,null,null,null,null,null,null,null,null,null,null,null,null,null,null,null,""]
[null,null,null,null,null,null,null,null,null,null,null,null,null,null,null,null,null,null,null,null,null,null,null,null,null,null,null,null,null,null,null,null,null,null,null,null,null,null,null,null,""]
[null,null,null,null,null,null,null,null,null,null,null,null,null,null,null,null,null,null,null,null,null,null,null,null,null,null,null,null,null,null,null,null,null,null,null,null,null,null,null,null,""]
[null,null,null,null,null,null,null,null,null,null,null,null,null,null,null,null,null,null,null,null,null,null,null,null,null,null,null,null,null,null,null,null,null,null,null,null,null,null,null,null,""]
[null,null,null,null,null,null,null,null,null,null,null,null,null,null,null,null,null,null,null,null,null,null,null,null,null,null,null,null,null,null,null,null,null,null,null,null,null,null,null,null,""]
[null,null,null,null,null,null,null,null,null,null,null,null,null,null,null,null,null,null,null,null,null,null,null,null,null,null,null,null,null,null,null,null,null,null,null,null,null,null,null,null,""]
[null,null,null,null,null,null,null,null,null,null,null,null,null,null,null,null,null,null,null,null,null,null,null,null,null,null,null,null,null,null,null,null,null,null,null,null,null,null,null,null,""]
[null,null,null,null,null,null,null,null,null,null,null,null,null,null,null,null,null,null,null,null,null,null,null,null,null,null,null,null,null,null,null,null,null,null,null,null,null,null,null,null,""]
[null,null,null,null,null,null,null,null,null,null,null,null,null,null,null,null,null,null,null,null,null,null,null,null,null,null,null,null,null,null,null,null,null,null,null,null,null,null,null,null,""]
[null,null,null,null,null,null,null,null,null,null,null,null,null,null,null,null,null,null,null,null,null,null,null,null,null,null,null,null,null,null,null,null,null,null,null,null,null,null,null,null,""]
[null,null,null,null,null,null,null,null,null,null,null,null,null,null,null,null,null,null,null,null,null,null,null,null,null,null,null,null,null,null,null,null,null,null,null,null,null,null,null,null,""]

{"sheet":"01F","index":3,"n_rows":120,"n_cols":51,"rows_kept":120,"cut":false,"hidden":false,"merged":[[29,2,33,2],[0,30,1,33],[2,3,2,27],[2,28,2,37],[3,3,3,7],[3,8,3,12],[3,13,3,17],[3,18,3,22],[3,23,3,27],[3,28,3,32],[3,33,3,37],[4,2,8,2],[9,2,13,2],[14,2,18,2],[19,2,23,2],[24,2,28,2]]}
[null,null,null,null,null,null,null,null,null,null,null,null,null,null,null,null,null,null,null,null,null,null,null,null,null,null,null,null,null,null,"パレット"]
[null,null,null,null,null,null,null,null,null,null,null,null,null,null,null,null,null,null,null,null,null,null,null,null,null,null,null,null,null,null,null,null,null,null,null,null,null,null,null,null,null,null,null,null,null,"[A-6](b-3)"]
["ツールバー",null,null,"1F　総務部",null,null,null,null,null,null,null,null,null,null,null,null,null,null,null,null,null,null,null,null,null,null,null,null,"01F",null,null,null,null,null,null,null,null,null,null,"アイコン",null,null,null,null,null,"図形"]
[null,null,null,1,null,null,null,null,2,null,null,null,null,3,null,null,null,null,4,null,null,null,null,5,null,null,null,null,6,null,null,null,null,7,null,null,null,null,null,"座標","アイコン","レイヤー","吹き出しの向き","テキスト",null,"座標","図形","レイヤー","色","X","Y"]
[null,null,"A",null,null,null,null,null,null,null,"座",null,null,null,null,null,null,null,null,null,null,null,null,null,null,null,null,null,null,null,null,null,null,null,null,null,null,null,null,"[A-2](a-3)","座椅子","その他","↙","部長"]
[null,null,null,null,null,null,null,null,null,null,"デ",null,null,null,"断",null,"コ",null,null,null,null,null,null,null,null,null,null,null,null,null,null,null,null,null,null,null,null,null,null,"[A-2](b-3)","デスクトップＰＣ","機器","↖","<a>会社PC1</a>"]
[null,null,null,null,null,null,null,null,null,null,"電",null,null,null,null,null,null,null,null,null,null,null,null,null,null,null,null,null,null,null,null,null,null,null,null,null,null,null,null,"[A-3](b-2)","シュレッダー","機器","↗","シュレッダー"]
[null,null,null,null,null,null,null,null,null,null,null,null,null,null,null,null,null,null,null,null,null,null,null,null,null,null,null,null,null,null,null,null,null,null,null,null,null,null,null,"[A-3](b-4)","コピー機","機器","↘","<a>複合機1</a>"]
[null,null,null,null,null,null,null,"座",null,null,null,null,null,null,"座",null,null,null,null,null,null,null,null,null,null,null,null,null,null,null,null,null,null,null,null,null,null,null,null,"[A-2](c-3)","電話","内線番号","↖",101]
[null,null,"B",null,null,null,null,"デ",null,null,null,null,null,null,"デ",null,null,null,null,null,null,null,null,null,null,null,null,null,null,null,null,null,null,null,null,null,null,null,null,"[A-1](e-5)","座椅子","1課","↖","1課課長"]
[null,null,null,null,null,null,null,null,null,null,null,null,null,null,null,null,null,null,null,null,null,null,null,null,null,null,null,null,null,null,null,null,null,null,null,null,null,null,null,"[A-3](e-2)","座椅子","2課","↗","2課課長"]
[null,null,null,null,null,null,null,"電",null,null,null,null,null,null,"電",null,null,null,null,null,null,null,null,null,null,null,null,null,null,null,null,null,null,null,null,null,null,null,null,"[B-1](a-5)","デスクトップＰＣ","機器","↖","<a>会社PC2</a>"]
[null,null,null,null,"座","ノ",null,null,"ノ","座",null,"座","ノ",null,null,"ノ","座",null,null,null,null,null,null,null,null,null,null,null,null,null,null,null,null,null,null,null,null,null,null,"[B-3](a-2)","デスクトップＰＣ","機器","↗","<a>会社PC3</a>"]
[null,null,null,null,null,null,null,null,null,null,null,null,null,null,null,null,null,null,null,null,null,null,null,null,null,null,null,null,null,null,null,null,null,null,null,null,null,null,null,"[B-1](c-5)","電話","内線番号","↖",102]
[null,null,"C",null,null,null,null,null,null,null,null,null,null,null,null,null,null,null,null,null,null,null,null,null,null,null,null,null,null,null,null,null,null,null,null,null,null,null,null,"[B-3](c-2)","電話","内線番号","↗",103]
[null,null,null,null,"座","ノ",null,null,"ノ","座",null,"座","ノ",null,null,"ノ","座",null,null,null,null,null,null,null,null,null,null,null,null,null,null,null,null,null,null,null,null,null,null,"[B-1](d-2)","座椅子","1課","↖","1課社員A"]
[null,null,null,null,null,null,null,null,null,null,null,null,null,null,null,null,null,null,null,null,null,null,null,null,null,null,null,null,null,null,null,null,null,null,null,null,null,null,null,"[B-1](d-3)","ノートＰＣ","機器","↖","<a>会社PC4</a>"]
[null,null,null,null,null,null,null,null,null,null,null,null,null,null,null,null,null,null,null,null,null,null,null,null,null,null,null,null,null,null,null,null,null,null,null,null,null,null,null,"[B-2](d-1)","ノートＰＣ","機器","↙","<a>会社PC5</a>"]
[null,null,null,null,null,null,"プ","電",null,null,null,null,null,"プ","電",null,null,null,null,null,null,null,null,null,null,null,null,null,null,null,null,null,null,null,null,null,null,null,null,"[B-2](d-2)","座椅子","1課","↗","1課社員B"]
[null,null,"D",null,null,null,null,null,null,null,null,null,null,null,null,null,null,null,null,null,null,null,null,null,null,null,null,null,null,null,null,null,null,null,null,null,null,null,null,"[B-2](d-4)","座椅子","2課","↖","2課社員G"]
[null,null,null,null,null,null,null,null,null,null,null,null,null,null,null,null,null,null,null,null,null,null,null,null,null,null,null,null,null,null,null,null,null,null,null,null,null,null,null,"[B-2](d-5)","ノートＰＣ","機器","↗","<a>会社PC6</a>"]
[null,null,null,null,"座","デ",null,null,"ノ","座",null,"座","ノ",null,null,"ノ","座",null,null,null,null,null,null,null,null,null,null,null,null,null,null,null,null,null,null,null,null,null,null,"[B-3](d-3)","ノートＰＣ","機器","↘","<a>会社PC7</a>"]
[null,null,null,null,null,null,null,null,null,null,null,null,null,null,null,null,null,null,"箱",null,null,null,null,null,null,null,null,null,null,null,null,null,null,null,null,null,null,null,null,"[B-3](d-4)","座椅子","2課","↗","2課社員H"]
[null,null,null,null,null,null,null,null,null,null,null,null,null,null,null,null,"書",null,null,null,null,null,null,null,null,null,null,null,null,null,null,null,null,null,null,null,null,null,null,"[C-1](b-2)","座椅子","1課","↖","1課社員C"]
[null,null,"E",null,null,null,null,null,null,null,null,null,null,null,null,null,null,null,null,null,null,null,null,null,null,null,null,null,null,null,null,null,null,null,null,null,null,null,null,"[C-1](b-3)","ノートＰＣ","機器","↖","<a>会社PC8</a>"]
[null,null,null,null,null,null,null,null,null,null,null,null,null,null,null,null,null,null,null,null,null,null,null,null,null,null,null,null,null,null,null,null,null,null,null,null,null,null,null,"[C-2](b-1)","ノートＰＣ","機器","↙","<a>会社PC9</a>"]
[null,null,null,null,null,null,null,null,null,null,null,null,null,null,null,null,null,null,null,null,null,null,null,null,null,null,null,null,null,null,null,null,null,null,null,null,null,null,null,"[C-2](b-2)","座椅子","1課","↗","1課社員D"]
[null,null,null,null,null,null,null,null,null,null,null,null,null,null,null,null,null,null,null,null,null,null,null,null,null,null,null,null,null,null,null,null,null,null,null,null,null,null,null,"[C-2](b-4)","座椅子","2課","↖","2課社員I"]
[null,null,null,null,null,null,null,null,null,null,null,null,null,null,null,null,null,null,null,null,null,null,null,null,null,null,null,null,null,null,null,null,null,null,null,null,null,null,null,"[C-2](b-5)","ノートＰＣ","機器","↗","<a>会社PC10</a>"]
[null,null,"F",null,null,null,null,null,null,null,null,null,null,null,null,null,null,null,null,null,null,null,null,null,null,null,null,null,null,null,null,null,null,null,null,null,null,null,null,"[C-3](b-3)","ノートＰＣ","機器","↘","<a>会社PC11</a>"]
[null,null,null,null,null,null,null,null,null,null,null,null,null,null,null,null,null,null,null,null,null,null,null,null,null,null,null,null,null,null,null,null,null,null,null,null,null,null,null,"[C-3](b-4)","座椅子","2課","↗","2課社員J"]
[null,null,null,null,null,null,null,null,null,null,null,null,null,null,null,null,null,null,null,null,null,null,null,null,null,null,null,null,null,null,null,null,null,null,null,null,null,null,null,"[C-1](e-4)","プリンタ","機器","↙","<a>インクジェットプリンタ1</a>"]
[null,null,null,null,null,null,null,null,null,null,null,null,null,null,null,null,null,null,null,null,null,null,null,null,null,null,null,null,null,null,null,null,null,null,null,null,null,null,null,"[C-1](e-5)","電話","内線番号","↖",104]
[null,null,null,null,null,null,null,null,null,null,null,null,null,null,null,null,null,null,null,null,null,null,null,null,null,null,null,null,null,null,null,null,null,null,null,null,null,null,null,"[C-3](e-1)","プリンタ","機器","↘","<a>レーザープリンタ1</a>"]
[null,null,null,null,null,null,null,null,null,null,null,null,null,null,null,null,null,null,null,null,null,null,null,null,null,null,null,null,null,null,null,null,null,null,null,null,null,null,null,"[C-3](e-2)","電話","内線番号","↗",105]
[null,null,null,null,null,null,null,null,null,null,null,null,null,null,null,null,null,null,null,null,null,null,null,null,null,null,null,null,null,null,null,null,null,null,null,null,null,null,null,"[D-1](c-2)","座椅子","1課","↖","1課社員E"]
[null,null,null,null,null,null,null,null,null,null,null,null,null,null,null,null,null,null,null,null,null,null,null,null,null,null,null,null,null,null,null,null,null,null,null,null,null,null,null,"[D-1](c-3)","デスクトップＰＣ","機器","↖","<a>会社PC12</a>"]
[null,null,null,null,null,null,null,null,null,null,null,null,null,null,null,null,null,null,null,null,null,null,null,null,null,null,null,null,null,null,null,null,null,null,null,null,null,null,null,"[D-2](c-1)","ノートＰＣ","機器","↙","<a>会社PC13</a>"]
[null,null,null,null,null,null,null,null,null,null,null,null,null,null,null,null,null,null,null,null,null,null,null,null,null,null,null,null,null,null,null,null,null,null,null,null,null,null,null,"[D-2](c-2)","座椅子","1課","↗","1課社員F"]
[null,null,null,null,null,null,null,null,null,null,null,null,null,null,null,null,null,null,null,null,null,null,null,null,null,null,null,null,null,null,null,null,null,null,null,null,null,null,null,"[D-2](c-4)","座椅子","2課","↖","2課社員K"]
[null,null,null,null,null,null,null,null,null,null,null,null,null,null,null,null,null,null,null,null,null,null,null,null,null,null,null,null,null,null,null,null,null,null,null,null,null,null,null,"[D-2](c-5)","ノートＰＣ","機器","↗","<a>会社PC14</a>"]
[null,null,null,null,null,null,null,null,null,null,null,null,null,null,null,null,null,null,null,null,null,null,null,null,null,null,null,null,null,null,null,null,null,null,null,null,null,null,null,"[D-3](c-3)","ノートＰＣ","機器","↘","<a>会社PC15</a>"]
[null,null,null,null,null,null,null,null,null,null,null,null,null,null,null,null,null,null,null,null,null,null,null,null,null,null,null,null,null,null,null,null,null,null,null,null,null,null,null,"[D-3](c-4)","座椅子","2課","↗","2課社員L"]
[null,null,null,null,null,null,null,null,null,null,null,null,null,null,null,null,null,null,null,null,null,null,null,null,null,null,null,null,null,null,null,null,null,null,null,null,null,null,null,"[D-4](d-1)","ゴミ箱","その他","↗","傘立て"]
[null,null,null,null,null,null,null,null,null,null,null,null,null,null,null,null,null,null,null,null,null,null,null,null,null,null,null,null,null,null,null,null,null,null,null,null,null,null,null,"[D-3](e-4)","メモ","その他","↘","出入り口"]
[null,null,null,null,null,null,null,null,null,null,null,null,null,null,null,null,null,null,null,null,null,null,null,null,null,null,null,null,null,null,null,null,null,null,null,null,null,null,null,null,""]
[null,null,null,null,null,null,null,null,null,null,null,null,null,null,null,null,null,null,null,null,null,null,null,null,null,null,null,null,null,null,null,null,null,null,null,null,null,null,null,null,""]
[null,null,null,null,null,null,null,null,null,null,null,null,null,null,null,null,null,null,null,null,null,null,null,null,null,null,null,null,null,null,null,null,null,null,null,null,null,null,null,null,""]
[null,null,null,null,null,null,null,null,null,null,null,null,null,null,null,null,null,null,null,null,null,null,null,null,null,null,null,null,null,null,null,null,null,null,null,null,null,null,null,null,""]
[null,null,null,null,null,null,null,null,null,null,null,null,null,null,null,null,null,null,null,null,null,null,null,null,null,null,null,null,null,null,null,null,null,null,null,null,null,null,null,null,""]
[null,null,null,null,null,null,null,null,null,null,null,null,null,null,null,null,null,null,null,null,null,null,null,null,null,null,null,null,null,null,null,null,null,null,null,null,null,null,null,null,""]
[null,null,null,null,null,null,null,null,null,null,null,null,null,null,null,null,null,null,null,null,null,null,null,null,null,null,null,null,null,null,null,null,null,null,null,null,null,null,null,null,""]
[null,null,null,null,null,null,null,null,null,null,null,null,null,null,null,null,null,null,null,null,null,null,null,null,null,null,null,null,null,null,null,null,null,null,null,null,null,null,null,null,""]
[null,null,null,null,null,null,null,null,null,null,null,null,null,null,null,null,null,null,null,null,null,null,null,null,null,null,null,null,null,null,null,null,null,null,null,null,null,null,null,null,""]
[null,null,null,null,null,null,null,null,null,null,null,null,null,null,null,null,null,null,null,null,null,null,null,null,null,null,null,null,null,null,null,null,null,null,null,null,null,null,null,null,""]
[null,null,null,null,null,null,null,null,null,null,null,null,null,null,null,null,null,null,null,null,null,null,null,null,null,null,null,null,null,null,null,null,null,null,null,null,null,null,null,null,""]
[null,null,null,null,null,null,null,null,null,null,null,null,null,null,null,null,null,null,null,null,null,null,null,null,null,null,null,null,null,null,null,null,null,null,null,null,null,null,null,null,""]
[null,null,null,null,null,null,null,null,null,null,null,null,null,null,null,null,null,null,null,null,null,null,null,null,null,null,null,null,null,null,null,null,null,null,null,null,null,null,null,null,""]
[null,null,null,null,null,null,null,null,null,null,null,null,null,null,null,null,null,null,null,null,null,null,null,null,null,null,null,null,null,null,null,null,null,null,null,null,null,null,null,null,""]
[null,null,null,null,null,null,null,null,null,null,null,null,null,null,null,null,null,null,null,null,null,null,null,null,null,null,null,null,null,null,null,null,null,null,null,null,null,null,null,null,""]
[null,null,null,null,null,null,null,null,null,null,null,null,null,null,null,null,null,null,null,null,null,null,null,null,null,null,null,null,null,null,null,null,null,null,null,null,null,null,null,null,""]
[null,null,null,null,null,null,null,null,null,null,null,null,null,null,null,null,null,null,null,null,null,null,null,null,null,null,null,null,null,null,null,null,null,null,null,null,null,null,null,null,""]
[null,null,null,null,null,null,null,null,null,null,null,null,null,null,null,null,null,null,null,null,null,null,null,null,null,null,null,null,null,null,null,null,null,null,null,null,null,null,null,null,""]
[null,null,null,null,null,null,null,null,null,null,null,null,null,null,null,null,null,null,null,null,null,null,null,null,null,null,null,null,null,null,null,null,null,null,null,null,null,null,null,null,""]
[null,null,null,null,null,null,null,null,null,null,null,null,null,null,null,null,null,null,null,null,null,null,null,null,null,null,null,null,null,null,null,null,null,null,null,null,null,null,null,null,""]
[null,null,null,null,null,null,null,null,null,null,null,null,null,null,null,null,null,null,null,null,null,null,null,null,null,null,null,null,null,null,null,null,null,null,null,null,null,null,null,null,""]
[null,null,null,null,null,null,null,null,null,null,null,null,null,null,null,null,null,null,null,null,null,null,null,null,null,null,null,null,null,null,null,null,null,null,null,null,null,null,null,null,""]
[null,null,null,null,null,null,null,null,null,null,null,null,null,null,null,null,null,null,null,null,null,null,null,null,null,null,null,null,null,null,null,null,null,null,null,null,null,null,null,null,""]
[null,null,null,null,null,null,null,null,null,null,null,null,null,null,null,null,null,null,null,null,null,null,null,null,null,null,null,null,null,null,null,null,null,null,null,null,null,null,null,null,""]
[null,null,null,null,null,null,null,null,null,null,null,null,null,null,null,null,null,null,null,null,null,null,null,null,null,null,null,null,null,null,null,null,null,null,null,null,null,null,null,null,""]
[null,null,null,null,null,null,null,null,null,null,null,null,null,null,null,null,null,null,null,null,null,null,null,null,null,null,null,null,null,null,null,null,null,null,null,null,null,null,null,null,""]
[null,null,null,null,null,null,null,null,null,null,null,null,null,null,null,null,null,null,null,null,null,null,null,null,null,null,null,null,null,null,null,null,null,null,null,null,null,null,null,null,""]
[null,null,null,null,null,null,null,null,null,null,null,null,null,null,null,null,null,null,null,null,null,null,null,null,null,null,null,null,null,null,null,null,null,null,null,null,null,null,null,null,""]
[null,null,null,null,null,null,null,null,null,null,null,null,null,null,null,null,null,null,null,null,null,null,null,null,null,null,null,null,null,null,null,null,null,null,null,null,null,null,null,null,""]
[null,null,null,null,null,null,null,null,null,null,null,null,null,null,null,null,null,null,null,null,null,null,null,null,null,null,null,null,null,null,null,null,null,null,null,null,null,null,null,null,""]
[null,null,null,null,null,null,null,null,null,null,null,null,null,null,null,null,null,null,null,null,null,null,null,null,null,null,null,null,null,null,null,null,null,null,null,null,null,null,null,null,""]
[null,null,null,null,null,null,null,null,null,null,null,null,null,null,null,null,null,null,null,null,null,null,null,null,null,null,null,null,null,null,null,null,null,null,null,null,null,null,null,null,""]
[null,null,null,null,null,null,null,null,null,null,null,null,null,null,null,null,null,null,null,null,null,null,null,null,null,null,null,null,null,null,null,null,null,null,null,null,null,null,null,null,""]
[null,null,null,null,null,null,null,null,null,null,null,null,null,null,null,null,null,null,null,null,null,null,null,null,null,null,null,null,null,null,null,null,null,null,null,null,null,null,null,null,""]
[null,null,null,null,null,null,null,null,null,null,null,null,null,null,null,null,null,null,null,null,null,null,null,null,null,null,null,null,null,null,null,null,null,null,null,null,null,null,null,null,""]
[null,null,null,null,null,null,null,null,null,null,null,null,null,null,null,null,null,null,null,null,null,null,null,null,null,null,null,null,null,null,null,null,null,null,null,null,null,null,null,null,""]
[null,null,null,null,null,null,null,null,null,null,null,null,null,null,null,null,null,null,null,null,null,null,null,null,null,null,null,null,null,null,null,null,null,null,null,null,null,null,null,null,""]
[null,null,null,null,null,null,null,null,null,null,null,null,null,null,null,null,null,null,null,null,null,null,null,null,null,null,null,null,null,null,null,null,null,null,null,null,null,null,null,null,""]
[null,null,null,null,null,null,null,null,null,null,null,null,null,null,null,null,null,null,null,null,null,null,null,null,null,null,null,null,null,null,null,null,null,null,null,null,null,null,null,null,""]
[null,null,null,null,null,null,null,null,null,null,null,null,null,null,null,null,null,null,null,null,null,null,null,null,null,null,null,null,null,null,null,null,null,null,null,null,null,null,null,null,""]
[null,null,null,null,null,null,null,null,null,null,null,null,null,null,null,null,null,null,null,null,null,null,null,null,null,null,null,null,null,null,null,null,null,null,null,null,null,null,null,null,""]
[null,null,null,null,null,null,null,null,null,null,null,null,null,null,null,null,null,null,null,null,null,null,null,null,null,null,null,null,null,null,null,null,null,null,null,null,null,null,null,null,""]
[null,null,null,null,null,null,null,null,null,null,null,null,null,null,null,null,null,null,null,null,null,null,null,null,null,null,null,null,null,null,null,null,null,null,null,null,null,null,null,null,""]
[null,null,null,null,null,null,null,null,null,null,null,null,null,null,null,null,null,null,null,null,null,null,null,null,null,null,null,null,null,null,null,null,null,null,null,null,null,null,null,null,""]
[null,null,null,null,null,null,null,null,null,null,null,null,null,null,null,null,null,null,null,null,null,null,null,null,null,null,null,null,null,null,null,null,null,null,null,null,null,null,null,null,""]
[null,null,null,null,null,null,null,null,null,null,null,null,null,null,null,null,null,null,null,null,null,null,null,null,null,null,null,null,null,null,null,null,null,null,null,null,null,null,null,null,""]
[null,null,null,null,null,null,null,null,null,null,null,null,null,null,null,null,null,null,null,null,null,null,null,null,null,null,null,null,null,null,null,null,null,null,null,null,null,null,null,null,""]
[null,null,null,null,null,null,null,null,null,null,null,null,null,null,null,null,null,null,null,null,null,null,null,null,null,null,null,null,null,null,null,null,null,null,null,null,null,null,null,null,""]
[null,null,null,null,null,null,null,null,null,null,null,null,null,null,null,null,null,null,null,null,null,null,null,null,null,null,null,null,null,null,null,null,null,null,null,null,null,null,null,null,""]
[null,null,null,null,null,null,null,null,null,null,null,null,null,null,null,null,null,null,null,null,null,null,null,null,null,null,null,null,null,null,null,null,null,null,null,null,null,null,null,null,""]
[null,null,null,null,null,null,null,null,null,null,null,null,null,null,null,null,null,null,null,null,null,null,null,null,null,null,null,null,null,null,null,null,null,null,null,null,null,null,null,null,""]
[null,null,null,null,null,null,null,null,null,null,null,null,null,null,null,null,null,null,null,null,null,null,null,null,null,null,null,null,null,null,null,null,null,null,null,null,null,null,null,null,""]
[null,null,null,null,null,null,null,null,null,null,null,null,null,null,null,null,null,null,null,null,null,null,null,null,null,null,null,null,null,null,null,null,null,null,null,null,null,null,null,null,""]
[null,null,null,null,null,null,null,null,null,null,null,null,null,null,null,null,null,null,null,null,null,null,null,null,null,null,null,null,null,null,null,null,null,null,null,null,null,null,null,null,""]
[null,null,null,null,null,null,null,null,null,null,null,null,null,null,null,null,null,null,null,null,null,null,null,null,null,null,null,null,null,null,null,null,null,null,null,null,null,null,null,null,""]
[null,null,null,null,null,null,null,null,null,null,null,null,null,null,null,null,null,null,null,null,null,null,null,null,null,null,null,null,null,null,null,null,null,null,null,null,null,null,null,null,""]
[null,null,null,null,null,null,null,null,null,null,null,null,null,null,null,null,null,null,null,null,null,null,null,null,null,null,null,null,null,null,null,null,null,null,null,null,null,null,null,null,""]
[null,null,null,null,null,null,null,null,null,null,null,null,null,null,null,null,null,null,null,null,null,null,null,null,null,null,null,null,null,null,null,null,null,null,null,null,null,null,null,null,""]
[null,null,null,null,null,null,null,null,null,null,null,null,null,null,null,null,null,null,null,null,null,null,null,null,null,null,null,null,null,null,null,null,null,null,null,null,null,null,null,null,""]
[null,null,null,null,null,null,null,null,null,null,null,null,null,null,null,null,null,null,null,null,null,null,null,null,null,null,null,null,null,null,null,null,null,null,null,null,null,null,null,null,""]
[null,null,null,null,null,null,null,null,null,null,null,null,null,null,null,null,null,null,null,null,null,null,null,null,null,null,null,null,null,null,null,null,null,null,null,null,null,null,null,null,""]
[null,null,null,null,null,null,null,null,null,null,null,null,null,null,null,null,null,null,null,null,null,null,null,null,null,null,null,null,null,null,null,null,null,null,null,null,null,null,null,null,""]
[null,null,null,null,null,null,null,null,null,null,null,null,null,null,null,null,null,null,null,null,null,null,null,null,null,null,null,null,null,null,null,null,null,null,null,null,null,null,null,null,""]
[null,null,null,null,null,null,null,null,null,null,null,null,null,null,null,null,null,null,null,null,null,null,null,null,null,null,null,null,null,null,null,null,null,null,null,null,null,null,null,null,""]
[null,null,null,null,null,null,null,null,null,null,null,null,null,null,null,null,null,null,null,null,null,null,null,null,null,null,null,null,null,null,null,null,null,null,null,null,null,null,null,null,""]
[null,null,null,null,null,null,null,null,null,null,null,null,null,null,null,null,null,null,null,null,null,null,null,null,null,null,null,null,null,null,null,null,null,null,null,null,null,null,null,null,""]
[null,null,null,null,null,null,null,null,null,null,null,null,null,null,null,null,null,null,null,null,null,null,null,null,null,null,null,null,null,null,null,null,null,null,null,null,null,null,null,null,""]
[null,null,null,null,null,null,null,null,null,null,null,null,null,null,null,null,null,null,null,null,null,null,null,null,null,null,null,null,null,null,null,null,null,null,null,null,null,null,null,null,""]
[null,null,null,null,null,null,null,null,null,null,null,null,null,null,null,null,null,null,null,null,null,null,null,null,null,null,null,null,null,null,null,null,null,null,null,null,null,null,null,null,""]
[null,null,null,null,null,null,null,null,null,null,null,null,null,null,null,null,null,null,null,null,null,null,null,null,null,null,null,null,null,null,null,null,null,null,null,null,null,null,null,null,""]
[null,null,null,null,null,null,null,null,null,null,null,null,null,null,null,null,null,null,null,null,null,null,null,null,null,null,null,null,null,null,null,null,null,null,null,null,null,null,null,null,""]
[null,null,null,null,null,null,null,null,null,null,null,null,null,null,null,null,null,null,null,null,null,null,null,null,null,null,null,null,null,null,null,null,null,null,null,null,null,null,null,null,""]
[null,null,null,null,null,null,null,null,null,null,null,null,null,null,null,null,null,null,null,null,null,null,null,null,null,null,null,null,null,null,null,null,null,null,null,null,null,null,null,null,""]
[null,null,null,null,null,null,null,null,null,null,null,null,null,null,null,null,null,null,null,null,null,null,null,null,null,null,null,null,null,null,null,null,null,null,null,null,null,null,null,null,""]
[null,null,null,null,null,null,null,null,null,null,null,null,null,null,null,null,null,null,null,null,null,null,null,null,null,null,null,null,null,null,null,null,null,null,null,null,null,null,null,null,""]

{"sheet":"02F","index":4,"n_rows":120,"n_cols":51,"rows_kept":120,"cut":false,"hidden":false,"merged":[[4,2,8,2],[9,2,13,2],[14,2,18,2],[19,2,23,2],[24,2,28,2],[29,2,33,2],[0,30,1,33],[2,3,2,27],[2,28,2,37],[3,3,3,7],[3,8,3,12],[3,13,3,17],[3,18,3,22],[3,23,3,27],[3,28,3,32],[3,33,3,37]]}
[null,null,null,null,null,null,null,null,null,null,null,null,null,null,null,null,null,null,null,null,null,null,null,null,null,null,null,null,null,null,"パレット"]
[null,null,null,null,null,null,null,null,null,null,null,null,null,null,null,null,null,null,null,null,null,null,null,null,null,null,null,null,null,null,null,null,null,null,null,null,null,null,null,null,null,null,null,null,null,"[D-3](c-2)"]
["ツールバー",null,null,"2F　人事部",null,null,null,null,null,null,null,null,null,null,null,null,null,null,null,null,null,null,null,null,null,null,null,null,"02F",null,null,null,null,null,null,null,null,null,null,"アイコン",null,null,null,null,null,"図形"]
[null,null,null,1,null,null,null,null,2,null,null,null,null,3,null,null,null,null,4,null,null,null,null,5,null,null,null,null,6,null,null,null,null,7,null,null,null,null,null,"座標","アイコン","レイヤー","吹き出しの向き","テキスト",null,"座標","図形","レイヤー","色","X","Y"]
[null,null,"A",null,null,null,null,null,null,null,null,null,null,null,null,null,null,null,null,null,null,null,null,null,null,null,null,null,null,null,null,null,null,null,null,null,null,null,null,"[A-1](b-5)","座椅子","その他","↖","部長"]
[null,null,null,null,null,null,null,"座",null,null,null,null,null,null,null,"座",null,null,null,null,null,null,null,null,null,null,null,null,null,null,null,null,null,null,null,null,null,null,null,"[A-3](b-3)","座椅子","1課","↗","係長"]
[null,null,null,null,null,null,null,"デ",null,null,null,null,null,null,null,"デ",null,null,null,null,null,null,null,null,null,null,null,null,null,null,null,null,null,null,null,null,null,null,null,"[A-1](c-5)","デスクトップＰＣ","機器","↖","<a>会社PC21</a>"]
[null,null,null,null,null,null,null,null,null,null,null,null,null,null,null,null,null,null,null,null,null,null,null,null,null,null,null,null,null,null,null,null,null,null,null,null,null,null,null,"[A-3](c-3)","デスクトップＰＣ","機器","↗","<a>会社PC22</a>"]
[null,null,null,null,null,null,"電",null,null,null,null,null,null,null,"電",null,null,null,null,null,null,null,null,null,null,null,null,null,null,null,null,null,null,null,null,null,null,null,null,"[A-1](e-4)","電話","内線番号","↖",201]
[null,null,"B",null,"座","デ",null,null,null,null,null,null,"座","デ",null,null,null,null,null,null,null,null,null,null,null,null,null,null,null,null,null,null,null,null,null,null,null,null,null,"[A-3](e-2)","電話","内線番号","↗",202]
[null,null,null,null,null,null,null,null,"デ","座",null,null,null,null,null,null,"デ","座",null,null,null,null,null,null,null,null,null,null,null,null,null,null,null,null,null,null,null,null,null,"[B-1](a-2)","座椅子","1課","↖","人事課社員A"]
[null,null,null,null,null,null,null,null,null,null,null,null,null,null,null,null,null,null,null,null,null,null,null,null,null,null,null,null,null,null,null,null,null,null,null,null,null,null,null,"[B-1](a-3)","デスクトップＰＣ","機器","↖","<a>会社PC23</a>"]
[null,null,null,null,null,null,null,null,null,null,null,null,null,null,null,null,null,null,null,null,null,null,null,null,null,null,null,null,null,null,null,null,null,null,null,null,null,null,null,"[B-2](a-5)","座椅子","1課","↗","人事課社員G"]
[null,null,null,null,"座","デ",null,null,null,null,null,null,"座","デ",null,null,null,null,null,null,null,null,null,null,null,null,null,null,null,null,null,null,null,null,null,null,null,null,null,"[B-3](a-1)","デスクトップＰＣ","機器","↗","<a>会社PC24</a>"]
[null,null,"C",null,null,null,null,null,"デ","座",null,null,null,null,null,null,"デ","座",null,null,null,null,null,null,null,null,null,null,null,null,null,null,null,null,null,null,null,null,null,"[B-2](b-1)","デスクトップＰＣ","機器","↙","<a>会社PC25</a>"]
[null,null,null,null,null,null,null,null,null,null,null,null,null,null,null,null,null,null,null,null,null,null,null,null,null,null,null,null,null,null,null,null,null,null,null,null,null,null,null,"[B-2](b-2)","座椅子","1課","↙","人事課社員D"]
[null,null,null,null,null,null,null,null,null,null,null,null,null,null,null,null,null,null,null,null,null,null,null,null,null,null,null,null,null,null,null,null,null,null,null,null,null,null,null,"[B-3](b-4)","デスクトップＰＣ","機器","↘","<a>会社PC26</a>"]
[null,null,null,null,"座","デ",null,null,null,null,null,null,null,null,"デ",null,null,null,null,null,null,null,null,null,null,null,null,null,null,null,null,null,null,null,null,null,null,null,null,"[B-3](b-5)","座椅子","1課","↘","人事課社員I"]
[null,null,null,null,null,null,null,null,"デ","座",null,null,null,null,"座",null,null,null,null,null,null,null,null,null,null,null,null,null,null,null,null,null,null,null,null,null,null,null,null,"[B-1](e-2)","座椅子","1課","↖","人事課社員B"]
[null,null,"D",null,null,null,null,"電",null,null,null,null,null,null,null,null,null,null,null,null,null,null,null,null,null,null,null,null,null,null,null,null,null,null,null,null,null,null,null,"[B-1](e-3)","デスクトップＰＣ","機器","↖","<a>会社PC27</a>"]
[null,null,null,null,null,null,null,null,null,null,null,null,null,null,null,null,null,null,null,null,null,null,null,null,null,null,null,null,null,null,null,null,null,null,null,null,null,null,null,"[B-2](e-5)","座椅子","1課","↗","人事課社員H"]
[null,null,null,null,null,null,"デ",null,null,null,null,null,"箱",null,"断",null,"コ",null,null,null,null,null,null,null,null,null,null,null,null,null,null,null,null,null,null,null,null,null,null,"[B-3](e-1)","デスクトップＰＣ","機器","↗","<a>会社PC28</a>"]
[null,null,null,null,null,null,"座",null,null,null,null,null,null,null,null,null,null,null,null,null,null,null,null,null,null,null,null,null,null,null,null,null,null,null,null,null,null,null,null,"[C-2](a-1)","デスクトップＰＣ","機器","↙","<a>会社PC29</a>"]
[null,null,null,null,null,null,null,null,null,null,null,null,null,null,null,null,"書",null,null,null,null,null,null,null,null,null,null,null,null,null,null,null,null,null,null,null,null,null,null,"[C-2](a-2)","座椅子","1課","↙","人事課社員E"]
[null,null,"E",null,null,null,null,null,null,null,null,null,null,null,null,null,null,null,null,null,null,null,null,null,null,null,null,null,null,null,null,null,null,null,null,null,null,null,null,"[C-3](a-4)","デスクトップＰＣ","ネットワーク","↘","<a>会社PC30</a>"]
[null,null,null,null,null,null,null,null,null,null,null,null,null,null,null,null,null,null,null,null,null,null,null,null,null,null,null,null,null,null,null,null,null,null,null,null,null,null,null,"[C-3](a-5)","座椅子","1課","↘","人事課社員J"]
[null,null,null,null,null,null,null,null,null,null,null,null,null,null,null,null,null,null,null,null,null,null,null,null,null,null,null,null,null,null,null,null,null,null,null,null,null,null,null,"[C-1](d-2)","座椅子","1課","↖","人事課社員C"]
[null,null,null,null,null,null,null,null,null,null,null,null,null,null,null,null,null,null,null,null,null,null,null,null,null,null,null,null,null,null,null,null,null,null,null,null,null,null,null,"[C-1](d-3)","デスクトップＰＣ","機器","↖","<a>会社PC31</a>"]
[null,null,null,null,null,null,null,null,null,null,null,null,null,null,null,null,null,null,null,null,null,null,null,null,null,null,null,null,null,null,null,null,null,null,null,null,null,null,null,"[C-3](d-2)","デスクトップＰＣ","機器","↘","<a>会社PC32</a>"]
[null,null,"F",null,null,null,null,null,null,null,null,null,null,null,null,null,null,null,null,null,null,null,null,null,null,null,null,null,null,null,null,null,null,null,null,null,null,null,null,"[C-2](e-1)","デスクトップＰＣ","機器","↙","<a>会社PC33</a>"]
[null,null,null,null,null,null,null,null,null,null,null,null,null,null,null,null,null,null,null,null,null,null,null,null,null,null,null,null,null,null,null,null,null,null,null,null,null,null,null,"[C-2](e-2)","座椅子","1課","↙","人事課社員F"]
[null,null,null,null,null,null,null,null,null,null,null,null,null,null,null,null,null,null,null,null,null,null,null,null,null,null,null,null,null,null,null,null,null,null,null,null,null,null,null,"[C-3](e-2)","座椅子","1課","↘","人事課社員K"]
[null,null,null,null,null,null,null,null,null,null,null,null,null,null,null,null,null,null,null,null,null,null,null,null,null,null,null,null,null,null,null,null,null,null,null,null,null,null,null,"[D-1](a-5)","電話","内線番号","↖",203]
[null,null,null,null,null,null,null,null,null,null,null,null,null,null,null,null,null,null,null,null,null,null,null,null,null,null,null,null,null,null,null,null,null,null,null,null,null,null,null,"[D-1](c-4)","デスクトップＰＣ","機器","↙","<a>会社PC34</a>"]
[null,null,null,null,null,null,null,null,null,null,null,null,null,null,null,null,null,null,null,null,null,null,null,null,null,null,null,null,null,null,null,null,null,null,null,null,null,null,null,"[D-2](c-5)","ゴミ箱","その他","↖","ゴミ箱"]
[null,null,null,null,null,null,null,null,null,null,null,null,null,null,null,null,null,null,null,null,null,null,null,null,null,null,null,null,null,null,null,null,null,null,null,null,null,null,null,"[D-3](c-2)","シュレッダー","機器","↗","シュレッダー"]
[null,null,null,null,null,null,null,null,null,null,null,null,null,null,null,null,null,null,null,null,null,null,null,null,null,null,null,null,null,null,null,null,null,null,null,null,null,null,null,"[D-3](c-4)","コピー機","機器","↘","<a>複合機2</a>"]
[null,null,null,null,null,null,null,null,null,null,null,null,null,null,null,null,null,null,null,null,null,null,null,null,null,null,null,null,null,null,null,null,null,null,null,null,null,null,null,"[D-1](d-4)","座椅子","1課","↖","課長"]
[null,null,null,null,null,null,null,null,null,null,null,null,null,null,null,null,null,null,null,null,null,null,null,null,null,null,null,null,null,null,null,null,null,null,null,null,null,null,null,"[D-3](e-4)","メモ","その他","↘","出入り口"]
[null,null,null,null,null,null,null,null,null,null,null,null,null,null,null,null,null,null,null,null,null,null,null,null,null,null,null,null,null,null,null,null,null,null,null,null,null,null,null,null,""]
[null,null,null,null,null,null,null,null,null,null,null,null,null,null,null,null,null,null,null,null,null,null,null,null,null,null,null,null,null,null,null,null,null,null,null,null,null,null,null,null,""]
[null,null,null,null,null,null,null,null,null,null,null,null,null,null,null,null,null,null,null,null,null,null,null,null,null,null,null,null,null,null,null,null,null,null,null,null,null,null,null,null,""]
[null,null,null,null,null,null,null,null,null,null,null,null,null,null,null,null,null,null,null,null,null,null,null,null,null,null,null,null,null,null,null,null,null,null,null,null,null,null,null,null,""]
[null,null,null,null,null,null,null,null,null,null,null,null,null,null,null,null,null,null,null,null,null,null,null,null,null,null,null,null,null,null,null,null,null,null,null,null,null,null,null,null,""]
[null,null,null,null,null,null,null,null,null,null,null,null,null,null,null,null,null,null,null,null,null,null,null,null,null,null,null,null,null,null,null,null,null,null,null,null,null,null,null,null,""]
[null,null,null,null,null,null,null,null,null,null,null,null,null,null,null,null,null,null,null,null,null,null,null,null,null,null,null,null,null,null,null,null,null,null,null,null,null,null,null,null,""]
[null,null,null,null,null,null,null,null,null,null,null,null,null,null,null,null,null,null,null,null,null,null,null,null,null,null,null,null,null,null,null,null,null,null,null,null,null,null,null,null,""]
[null,null,null,null,null,null,null,null,null,null,null,null,null,null,null,null,null,null,null,null,null,null,null,null,null,null,null,null,null,null,null,null,null,null,null,null,null,null,null,null,""]
[null,null,null,null,null,null,null,null,null,null,null,null,null,null,null,null,null,null,null,null,null,null,null,null,null,null,null,null,null,null,null,null,null,null,null,null,null,null,null,null,""]
[null,null,null,null,null,null,null,null,null,null,null,null,null,null,null,null,null,null,null,null,null,null,null,null,null,null,null,null,null,null,null,null,null,null,null,null,null,null,null,null,""]
[null,null,null,null,null,null,null,null,null,null,null,null,null,null,null,null,null,null,null,null,null,null,null,null,null,null,null,null,null,null,null,null,null,null,null,null,null,null,null,null,""]
[null,null,null,null,null,null,null,null,null,null,null,null,null,null,null,null,null,null,null,null,null,null,null,null,null,null,null,null,null,null,null,null,null,null,null,null,null,null,null,null,""]
[null,null,null,null,null,null,null,null,null,null,null,null,null,null,null,null,null,null,null,null,null,null,null,null,null,null,null,null,null,null,null,null,null,null,null,null,null,null,null,null,""]
[null,null,null,null,null,null,null,null,null,null,null,null,null,null,null,null,null,null,null,null,null,null,null,null,null,null,null,null,null,null,null,null,null,null,null,null,null,null,null,null,""]
[null,null,null,null,null,null,null,null,null,null,null,null,null,null,null,null,null,null,null,null,null,null,null,null,null,null,null,null,null,null,null,null,null,null,null,null,null,null,null,null,""]
[null,null,null,null,null,null,null,null,null,null,null,null,null,null,null,null,null,null,null,null,null,null,null,null,null,null,null,null,null,null,null,null,null,null,null,null,null,null,null,null,""]
[null,null,null,null,null,null,null,null,null,null,null,null,null,null,null,null,null,null,null,null,null,null,null,null,null,null,null,null,null,null,null,null,null,null,null,null,null,null,null,null,""]
[null,null,null,null,null,null,null,null,null,null,null,null,null,null,null,null,null,null,null,null,null,null,null,null,null,null,null,null,null,null,null,null,null,null,null,null,null,null,null,null,""]
[null,null,null,null,null,null,null,null,null,null,null,null,null,null,null,null,null,null,null,null,null,null,null,null,null,null,null,null,null,null,null,null,null,null,null,null,null,null,null,null,""]
[null,null,null,null,null,null,null,null,null,null,null,null,null,null,null,null,null,null,null,null,null,null,null,null,null,null,null,null,null,null,null,null,null,null,null,null,null,null,null,null,""]
[null,null,null,null,null,null,null,null,null,null,null,null,null,null,null,null,null,null,null,null,null,null,null,null,null,null,null,null,null,null,null,null,null,null,null,null,null,null,null,null,""]
[null,null,null,null,null,null,null,null,null,null,null,null,null,null,null,null,null,null,null,null,null,null,null,null,null,null,null,null,null,null,null,null,null,null,null,null,null,null,null,null,""]
[null,null,null,null,null,null,null,null,null,null,null,null,null,null,null,null,null,null,null,null,null,null,null,null,null,null,null,null,null,null,null,null,null,null,null,null,null,null,null,null,""]
[null,null,null,null,null,null,null,null,null,null,null,null,null,null,null,null,null,null,null,null,null,null,null,null,null,null,null,null,null,null,null,null,null,null,null,null,null,null,null,null,""]
[null,null,null,null,null,null,null,null,null,null,null,null,null,null,null,null,null,null,null,null,null,null,null,null,null,null,null,null,null,null,null,null,null,null,null,null,null,null,null,null,""]
[null,null,null,null,null,null,null,null,null,null,null,null,null,null,null,null,null,null,null,null,null,null,null,null,null,null,null,null,null,null,null,null,null,null,null,null,null,null,null,null,""]
[null,null,null,null,null,null,null,null,null,null,null,null,null,null,null,null,null,null,null,null,null,null,null,null,null,null,null,null,null,null,null,null,null,null,null,null,null,null,null,null,""]
[null,null,null,null,null,null,null,null,null,null,null,null,null,null,null,null,null,null,null,null,null,null,null,null,null,null,null,null,null,null,null,null,null,null,null,null,null,null,null,null,""]
[null,null,null,null,null,null,null,null,null,null,null,null,null,null,null,null,null,null,null,null,null,null,null,null,null,null,null,null,null,null,null,null,null,null,null,null,null,null,null,null,""]
[null,null,null,null,null,null,null,null,null,null,null,null,null,null,null,null,null,null,null,null,null,null,null,null,null,null,null,null,null,null,null,null,null,null,null,null,null,null,null,null,""]
[null,null,null,null,null,null,null,null,null,null,null,null,null,null,null,null,null,null,null,null,null,null,null,null,null,null,null,null,null,null,null,null,null,null,null,null,null,null,null,null,""]
[null,null,null,null,null,null,null,null,null,null,null,null,null,null,null,null,null,null,null,null,null,null,null,null,null,null,null,null,null,null,null,null,null,null,null,null,null,null,null,null,""]
[null,null,null,null,null,null,null,null,null,null,null,null,null,null,null,null,null,null,null,null,null,null,null,null,null,null,null,null,null,null,null,null,null,null,null,null,null,null,null,null,""]
[null,null,null,null,null,null,null,null,null,null,null,null,null,null,null,null,null,null,null,null,null,null,null,null,null,null,null,null,null,null,null,null,null,null,null,null,null,null,null,null,""]
[null,null,null,null,null,null,null,null,null,null,null,null,null,null,null,null,null,null,null,null,null,null,null,null,null,null,null,null,null,null,null,null,null,null,null,null,null,null,null,null,""]
[null,null,null,null,null,null,null,null,null,null,null,null,null,null,null,null,null,null,null,null,null,null,null,null,null,null,null,null,null,null,null,null,null,null,null,null,null,null,null,null,""]
[null,null,null,null,null,null,null,null,null,null,null,null,null,null,null,null,null,null,null,null,null,null,null,null,null,null,null,null,null,null,null,null,null,null,null,null,null,null,null,null,""]
[null,null,null,null,null,null,null,null,null,null,null,null,null,null,null,null,null,null,null,null,null,null,null,null,null,null,null,null,null,null,null,null,null,null,null,null,null,null,null,null,""]
[null,null,null,null,null,null,null,null,null,null,null,null,null,null,null,null,null,null,null,null,null,null,null,null,null,null,null,null,null,null,null,null,null,null,null,null,null,null,null,null,""]
[null,null,null,null,null,null,null,null,null,null,null,null,null,null,null,null,null,null,null,null,null,null,null,null,null,null,null,null,null,null,null,null,null,null,null,null,null,null,null,null,""]
[null,null,null,null,null,null,null,null,null,null,null,null,null,null,null,null,null,null,null,null,null,null,null,null,null,null,null,null,null,null,null,null,null,null,null,null,null,null,null,null,""]
[null,null,null,null,null,null,null,null,null,null,null,null,null,null,null,null,null,null,null,null,null,null,null,null,null,null,null,null,null,null,null,null,null,null,null,null,null,null,null,null,""]
[null,null,null,null,null,null,null,null,null,null,null,null,null,null,null,null,null,null,null,null,null,null,null,null,null,null,null,null,null,null,null,null,null,null,null,null,null,null,null,null,""]
[null,null,null,null,null,null,null,null,null,null,null,null,null,null,null,null,null,null,null,null,null,null,null,null,null,null,null,null,null,null,null,null,null,null,null,null,null,null,null,null,""]
[null,null,null,null,null,null,null,null,null,null,null,null,null,null,null,null,null,null,null,null,null,null,null,null,null,null,null,null,null,null,null,null,null,null,null,null,null,null,null,null,""]
[null,null,null,null,null,null,null,null,null,null,null,null,null,null,null,null,null,null,null,null,null,null,null,null,null,null,null,null,null,null,null,null,null,null,null,null,null,null,null,null,""]
[null,null,null,null,null,null,null,null,null,null,null,null,null,null,null,null,null,null,null,null,null,null,null,null,null,null,null,null,null,null,null,null,null,null,null,null,null,null,null,null,""]
[null,null,null,null,null,null,null,null,null,null,null,null,null,null,null,null,null,null,null,null,null,null,null,null,null,null,null,null,null,null,null,null,null,null,null,null,null,null,null,null,""]
[null,null,null,null,null,null,null,null,null,null,null,null,null,null,null,null,null,null,null,null,null,null,null,null,null,null,null,null,null,null,null,null,null,null,null,null,null,null,null,null,""]
[null,null,null,null,null,null,null,null,null,null,null,null,null,null,null,null,null,null,null,null,null,null,null,null,null,null,null,null,null,null,null,null,null,null,null,null,null,null,null,null,""]
[null,null,null,null,null,null,null,null,null,null,null,null,null,null,null,null,null,null,null,null,null,null,null,null,null,null,null,null,null,null,null,null,null,null,null,null,null,null,null,null,""]
[null,null,null,null,null,null,null,null,null,null,null,null,null,null,null,null,null,null,null,null,null,null,null,null,null,null,null,null,null,null,null,null,null,null,null,null,null,null,null,null,""]
[null,null,null,null,null,null,null,null,null,null,null,null,null,null,null,null,null,null,null,null,null,null,null,null,null,null,null,null,null,null,null,null,null,null,null,null,null,null,null,null,""]
[null,null,null,null,null,null,null,null,null,null,null,null,null,null,null,null,null,null,null,null,null,null,null,null,null,null,null,null,null,null,null,null,null,null,null,null,null,null,null,null,""]
[null,null,null,null,null,null,null,null,null,null,null,null,null,null,null,null,null,null,null,null,null,null,null,null,null,null,null,null,null,null,null,null,null,null,null,null,null,null,null,null,""]
[null,null,null,null,null,null,null,null,null,null,null,null,null,null,null,null,null,null,null,null,null,null,null,null,null,null,null,null,null,null,null,null,null,null,null,null,null,null,null,null,""]
[null,null,null,null,null,null,null,null,null,null,null,null,null,null,null,null,null,null,null,null,null,null,null,null,null,null,null,null,null,null,null,null,null,null,null,null,null,null,null,null,""]
[null,null,null,null,null,null,null,null,null,null,null,null,null,null,null,null,null,null,null,null,null,null,null,null,null,null,null,null,null,null,null,null,null,null,null,null,null,null,null,null,""]
[null,null,null,null,null,null,null,null,null,null,null,null,null,null,null,null,null,null,null,null,null,null,null,null,null,null,null,null,null,null,null,null,null,null,null,null,null,null,null,null,""]
[null,null,null,null,null,null,null,null,null,null,null,null,null,null,null,null,null,null,null,null,null,null,null,null,null,null,null,null,null,null,null,null,null,null,null,null,null,null,null,null,""]
[null,null,null,null,null,null,null,null,null,null,null,null,null,null,null,null,null,null,null,null,null,null,null,null,null,null,null,null,null,null,null,null,null,null,null,null,null,null,null,null,""]
[null,null,null,null,null,null,null,null,null,null,null,null,null,null,null,null,null,null,null,null,null,null,null,null,null,null,null,null,null,null,null,null,null,null,null,null,null,null,null,null,""]
[null,null,null,null,null,null,null,null,null,null,null,null,null,null,null,null,null,null,null,null,null,null,null,null,null,null,null,null,null,null,null,null,null,null,null,null,null,null,null,null,""]
[null,null,null,null,null,null,null,null,null,null,null,null,null,null,null,null,null,null,null,null,null,null,null,null,null,null,null,null,null,null,null,null,null,null,null,null,null,null,null,null,""]
[null,null,null,null,null,null,null,null,null,null,null,null,null,null,null,null,null,null,null,null,null,null,null,null,null,null,null,null,null,null,null,null,null,null,null,null,null,null,null,null,""]
[null,null,null,null,null,null,null,null,null,null,null,null,null,null,null,null,null,null,null,null,null,null,null,null,null,null,null,null,null,null,null,null,null,null,null,null,null,null,null,null,""]
[null,null,null,null,null,null,null,null,null,null,null,null,null,null,null,null,null,null,null,null,null,null,null,null,null,null,null,null,null,null,null,null,null,null,null,null,null,null,null,null,""]
[null,null,null,null,null,null,null,null,null,null,null,null,null,null,null,null,null,null,null,null,null,null,null,null,null,null,null,null,null,null,null,null,null,null,null,null,null,null,null,null,""]
[null,null,null,null,null,null,null,null,null,null,null,null,null,null,null,null,null,null,null,null,null,null,null,null,null,null,null,null,null,null,null,null,null,null,null,null,null,null,null,null,""]
[null,null,null,null,null,null,null,null,null,null,null,null,null,null,null,null,null,null,null,null,null,null,null,null,null,null,null,null,null,null,null,null,null,null,null,null,null,null,null,null,""]
[null,null,null,null,null,null,null,null,null,null,null,null,null,null,null,null,null,null,null,null,null,null,null,null,null,null,null,null,null,null,null,null,null,null,null,null,null,null,null,null,""]
[null,null,null,null,null,null,null,null,null,null,null,null,null,null,null,null,null,null,null,null,null,null,null,null,null,null,null,null,null,null,null,null,null,null,null,null,null,null,null,null,""]
[null,null,null,null,null,null,null,null,null,null,null,null,null,null,null,null,null,null,null,null,null,null,null,null,null,null,null,null,null,null,null,null,null,null,null,null,null,null,null,null,""]
[null,null,null,null,null,null,null,null,null,null,null,null,null,null,null,null,null,null,null,null,null,null,null,null,null,null,null,null,null,null,null,null,null,null,null,null,null,null,null,null,""]
[null,null,null,null,null,null,null,null,null,null,null,null,null,null,null,null,null,null,null,null,null,null,null,null,null,null,null,null,null,null,null,null,null,null,null,null,null,null,null,null,""]
[null,null,null,null,null,null,null,null,null,null,null,null,null,null,null,null,null,null,null,null,null,null,null,null,null,null,null,null,null,null,null,null,null,null,null,null,null,null,null,null,""]
[null,null,null,null,null,null,null,null,null,null,null,null,null,null,null,null,null,null,null,null,null,null,null,null,null,null,null,null,null,null,null,null,null,null,null,null,null,null,null,null,""]
[null,null,null,null,null,null,null,null,null,null,null,null,null,null,null,null,null,null,null,null,null,null,null,null,null,null,null,null,null,null,null,null,null,null,null,null,null,null,null,null,""]
[null,null,null,null,null,null,null,null,null,null,null,null,null,null,null,null,null,null,null,null,null,null,null,null,null,null,null,null,null,null,null,null,null,null,null,null,null,null,null,null,""]
[null,null,null,null,null,null,null,null,null,null,null,null,null,null,null,null,null,null,null,null,null,null,null,null,null,null,null,null,null,null,null,null,null,null,null,null,null,null,null,null,""]